Workbook

Sheet Sheet1
B2: Gradient Tool MK2.6
B6: Lightest | C6: First Colour: | E6: 255 255 255 | I6: 1 | J6: 2 | K6: 3 | L6: 4 | M6: 5 | N6: 6 | O6: 7 | P6: 8 | Q6: 9 | R6: 10 | S6: 11 | T6: 12 | U6: 13 | V6: 14 | W6: 15 | X6: 16 | Y6: 17 | Z6: 18 | AA6: 19 | AB6: 20 | AC6: 21 | AD6: 22 | AE6: 23 | AF6: 24 | AG6: 25 | AH6: 26 | AI6: 27 | AJ6: 28 | AK6: 29 | AL6: 30 | AM6: 31 | AN6: 32 | AO6: 33 | AP6: 34 | AQ6: 35 | AR6: 36 | AS6: 37 | AT6: 38 | AU6: 39 | AV6: 40 | AW6: 41 | AX6: 42 | AY6: 43
B7: Darkest | C7: Second Colour: | E7: 000 000 000 | H7: RGB | I7: =IF($E$11>=I6-2, $D$14, ("")) -> 255 255 255 | J7: =IF($E$11>=J6-2,((IF($D$14>=J6-2,ROUND((LEFT($D$14, SEARCH(" ",$D$14,1)-1))-(((LEFT($D$14, SEARCH(" ",$D$14,1)-1))-(LEFT($D$17, SEARCH(" ",$D$17,1)-1)))/($E$11+1)),0),(" ")))&" "&(IF($E$11>=J6-2,ROUND((MID($D$14, SEARCH(" ",$D$14) + 1, SEARCH(" ",$D$14,SEARCH(" ",$D$14)+1) - SEARCH(" ",$D$14) - 1))-(((MID($D$14, SEARCH(" ",$D$14) + 1, SEARCH(" ",$D$14,SEARCH(" ",$D$14)+1) - SEARCH(" ",$D$14) - 1))-(MID($D$17, SEARCH(" ",$D$17) + 1, SEARCH(" ",$D$17,SEARCH(" ",$D$17)+1) - SEARCH(" ",$D$17) - 1)))/($E$11+1)),0),(" ")))&" "&(IF($E$11>=J6-2,ROUND((RIGHT($D$14, SEARCH(" ",$D$14,1)-1))-(((RIGHT($D$14, SEARCH(" ",$D$14,1)-1))-(RIGHT($D$17, SEARCH(" ",$D$17,1)-1)))/($E$11+1)),0),(" ")))),"") -> 254 254 254 | K7: =IF($E$11>=K6-2,((IF($D$14>=K6-2,ROUND((LEFT($D$14, SEARCH(" ",$D$14,1)-1))-((((LEFT($D$14, SEARCH(" ",$D$14,1)-1))-(LEFT($D$17, SEARCH(" ",$D$17,1)-1)))/($E$11+1))*(K6-1)),0),(" ")))&" "&(IF($E$11>=K6-2,ROUND((MID($D$14, SEARCH(" ",$D$14) + 1, SEARCH(" ",$D$14,SEARCH(" ",$D$14)+1) - SEARCH(" ",$D$14) - 1))-(((MID($D$14, SEARCH(" ",$D$14) + 1, SEARCH(" ",$D$14,SEARCH(" ",$D$14)+1) - SEARCH(" ",$D$14) - 1))-(MID($D$17, SEARCH(" ",$D$17) + 1, SEARCH(" ",$D$17,SEARCH(" ",$D$17)+1) - SEARCH(" ",$D$17) - 1)))/($E$11+1)),0),(" ")))&" "&(IF($E$11>=K6-2,ROUND((RIGHT($D$14, SEARCH(" ",$D$14,1)-1))-(((RIGHT($D$14, SEARCH(" ",$D$14,1)-1))-(RIGHT($D$17, SEARCH(" ",$D$17,1)-1)))/($E$11+1)),0),(" ")))),"") -> 253 254 254 | L7: =IF($E$11>=L6-2,((IF($D$14>=L6-2,ROUND((LEFT($D$14, SEARCH(" ",$D$14,1)-1))-((((LEFT($D$14, SEARCH(" ",$D$14,1)-1))-(LEFT($D$17, SEARCH(" ",$D$17,1)-1)))/($E$11+1))*(L6-1)),0),(" ")))&" "&(IF($E$11>=L6-2,ROUND((MID($D$14, SEARCH(" ",$D$14) + 1, SEARCH(" ",$D$14,SEARCH(" ",$D$14)+1) - SEARCH(" ",$D$14) - 1))-(((MID($D$14, SEARCH(" ",$D$14) + 1, SEARCH(" ",$D$14,SEARCH(" ",$D$14)+1) - SEARCH(" ",$D$14) - 1))-(MID($D$17, SEARCH(" ",$D$17) + 1, SEARCH(" ",$D$17,SEARCH(" ",$D$17)+1) - SEARCH(" ",$D$17) - 1)))/($E$11+1)),0),(" ")))&" "&(IF($E$11>=L6-2,ROUND((RIGHT($D$14, SEARCH(" ",$D$14,1)-1))-(((RIGHT($D$14, SEARCH(" ",$D$14,1)-1))-(RIGHT($D$17, SEARCH(" ",$D$17,1)-1)))/($E$11+1)),0),(" ")))),"") -> 252 254 254 | M7: 251 254 254 | N7: 250 254 254 | O7: 249 254 254 | P7: 248 254 254 | Q7: 247 254 254 | R7: 246 254 254 | S7: 245 254 254 | T7: 244 254 254 | U7: 243 254 254 | V7: 242 254 254 | W7: 241 254 254 | X7: 240 254 254 | Y7: 239 254 254 | Z7: 238 254 254 | AA7: 237 254 254 | AB7: 236 254 254 | AC7: 235 254 254 | AD7: 234 254 254 | AE7: 233 254 254 | AF7: 232 254 254 | AG7: 231 254 254 | AH7: 230 254 254 | AI7: 229 254 254 | AJ7: 228 254 254 | AK7: 227 254 254 | AL7: 226 254 254 | AM7: 225 254 254 | AN7: 224 254 254 | AO7: 223 254 254 | AP7: 222 254 254 | AQ7: 221 254 254 | AR7: 220 254 254 | AS7: 219 254 254 | AT7: 218 254 254 | AU7: 217 254 254 | AV7: 216 254 254 | AW7: 215 254 254 | AX7: 214 254 254 | AY7: 213 254 254
C8: Hex or RGB? | E8: RGB | H8: HEX | I8: =IF($E$11>=I6-2,"#"&DEC2HEX((LEFT(I7,SEARCH(" ",I7,1)-1)),2)&DEC2HEX((MID(I7,SEARCH(" ",I7)+1,SEARCH(" ",I7,SEARCH(" ",I7)+1)-SEARCH(" ",I7)-1)),2)&DEC2HEX((RIGHT(I7,LEN(I7)-SEARCH(" ",I7,SEARCH(" ",I7)+1))),2),("")) -> #FFFFFF | J8: =IF($E$11>=J6-2,"#"&DEC2HEX((LEFT(J7,SEARCH(" ",J7,1)-1)),2)&DEC2HEX((MID(J7,SEARCH(" ",J7)+1,SEARCH(" ",J7,SEARCH(" ",J7)+1)-SEARCH(" ",J7)-1)),2)&DEC2HEX((RIGHT(J7,LEN(J7)-SEARCH(" ",J7,SEARCH(" ",J7)+1))),2),("")) -> #FEFEFE | K8: =IF($E$11>=K6-2,"#"&DEC2HEX((LEFT(K7,SEARCH(" ",K7,1)-1)),2)&DEC2HEX((MID(K7,SEARCH(" ",K7)+1,SEARCH(" ",K7,SEARCH(" ",K7)+1)-SEARCH(" ",K7)-1)),2)&DEC2HEX((RIGHT(K7,LEN(K7)-SEARCH(" ",K7,SEARCH(" ",K7)+1))),2),("")) -> #FDFEFE | L8: =IF($E$11>=L6-2,"#"&DEC2HEX((LEFT(L7,SEARCH(" ",L7,1)-1)),2)&DEC2HEX((MID(L7,SEARCH(" ",L7)+1,SEARCH(" ",L7,SEARCH(" ",L7)+1)-SEARCH(" ",L7)-1)),2)&DEC2HEX((RIGHT(L7,LEN(L7)-SEARCH(" ",L7,SEARCH(" ",L7)+1))),2),("")) -> #FCFEFE | M8: =IF($E$11>=M6-2,"#"&DEC2HEX((LEFT(M7,SEARCH(" ",M7,1)-1)),2)&DEC2HEX((MID(M7,SEARCH(" ",M7)+1,SEARCH(" ",M7,SEARCH(" ",M7)+1)-SEARCH(" ",M7)-1)),2)&DEC2HEX((RIGHT(M7,LEN(M7)-SEARCH(" ",M7,SEARCH(" ",M7)+1))),2),("")) -> #FBFEFE | N8: #FAFEFE | O8: #F9FEFE | P8: #F8FEFE | Q8: #F7FEFE | R8: #F6FEFE | S8: #F5FEFE | T8: #F4FEFE | U8: #F3FEFE | V8: #F2FEFE | W8: #F1FEFE | X8: #F0FEFE | Y8: #EFFEFE | Z8: #EEFEFE | AA8: #EDFEFE | AB8: #ECFEFE | AC8: #EBFEFE | AD8: #EAFEFE | AE8: #E9FEFE | AF8: #E8FEFE | AG8: #E7FEFE | AH8: #E6FEFE | AI8: #E5FEFE | AJ8: #E4FEFE | AK8: #E3FEFE | AL8: #E2FEFE | AM8: #E1FEFE | AN8: #E0FEFE | AO8: #DFFEFE | AP8: #DEFEFE | AQ8: #DDFEFE | AR8: #DCFEFE | AS8: #DBFEFE | AT8: #DAFEFE | AU8: #D9FEFE | AV8: =IF($E$11>=AV6-2,"#"&DEC2HEX((LEFT(AV7,SEARCH(" ",AV7,1)-1)),2)&DEC2HEX((MID(AV7,SEARCH(" ",AV7)+1,SEARCH(" ",AV7,SEARCH(" ",AV7)+1)-SEARCH(" ",AV7)-1)),2)&DEC2HEX((RIGHT(AV7,LEN(AV7)-SEARCH(" ",AV7,SEARCH(" ",AV7)+1))),2),("")) -> #D8FEFE | AW8: =IF($E$11>=AW6-2,"#"&DEC2HEX((LEFT(AW7,SEARCH(" ",AW7,1)-1)),2)&DEC2HEX((MID(AW7,SEARCH(" ",AW7)+1,SEARCH(" ",AW7,SEARCH(" ",AW7)+1)-SEARCH(" ",AW7)-1)),2)&DEC2HEX((RIGHT(AW7,LEN(AW7)-SEARCH(" ",AW7,SEARCH(" ",AW7)+1))),2),("")) -> #D7FEFE | AX8: =IF($E$11>=AX6-2,"#"&DEC2HEX((LEFT(AX7,SEARCH(" ",AX7,1)-1)),2)&DEC2HEX((MID(AX7,SEARCH(" ",AX7)+1,SEARCH(" ",AX7,SEARCH(" ",AX7)+1)-SEARCH(" ",AX7)-1)),2)&DEC2HEX((RIGHT(AX7,LEN(AX7)-SEARCH(" ",AX7,SEARCH(" ",AX7)+1))),2),("")) -> #D6FEFE | AY8: =IF($E$11>=AY6-2,"#"&DEC2HEX((LEFT(AY7,SEARCH(" ",AY7,1)-1)),2)&DEC2HEX((MID(AY7,SEARCH(" ",AY7)+1,SEARCH(" ",AY7,SEARCH(" ",AY7)+1)-SEARCH(" ",AY7)-1)),2)&DEC2HEX((RIGHT(AY7,LEN(AY7)-SEARCH(" ",AY7,SEARCH(" ",AY7)+1))),2),("")) -> #D5FEFE
B9: Lightest | C9: First Colour: | E9: #ffffff | I9: =IF($E$11>=I6-2, myRGB((LEFT(I7, SEARCH(" ",I7,1)-1)),(MID(I7, SEARCH(" ",I7) + 1, SEARCH(" ",I7,SEARCH(" ",I7)+1) - SEARCH(" ",I7) - 1)),(RIGHT(I7, SEARCH(" ",I7,1)-1))),myRGB(255, 255, 255)) ->  | J9: =IF($E$11>=J6-2, myRGB((LEFT(J7, SEARCH(" ",J7,1)-1)),(MID(J7, SEARCH(" ",J7) + 1, SEARCH(" ",J7,SEARCH(" ",J7)+1) - SEARCH(" ",J7) - 1)),(RIGHT(J7, SEARCH(" ",J7,1)-1))),myRGB(255, 255, 255)) ->  | K9: =IF($E$11>=K6-2, myRGB((LEFT(K7, SEARCH(" ",K7,1)-1)),(MID(K7, SEARCH(" ",K7) + 1, SEARCH(" ",K7,SEARCH(" ",K7)+1) - SEARCH(" ",K7) - 1)),(RIGHT(K7, SEARCH(" ",K7,1)-1))),myRGB(255, 255, 255)) ->  | L9: =IF($E$11>=L6-2, myRGB((LEFT(L7, SEARCH(" ",L7,1)-1)),(MID(L7, SEARCH(" ",L7) + 1, SEARCH(" ",L7,SEARCH(" ",L7)+1) - SEARCH(" ",L7) - 1)),(RIGHT(L7, SEARCH(" ",L7,1)-1))),myRGB(255, 255, 255)) ->  | M9: =IF($E$11>=M6-2, myRGB((LEFT(M7, SEARCH(" ",M7,1)-1)),(MID(M7, SEARCH(" ",M7) + 1, SEARCH(" ",M7,SEARCH(" ",M7)+1) - SEARCH(" ",M7) - 1)),(RIGHT(M7, SEARCH(" ",M7,1)-1))),myRGB(255, 255, 255)) ->  | N9: =IF($E$11>=N6-2, myRGB((LEFT(N7, SEARCH(" ",N7,1)-1)),(MID(N7, SEARCH(" ",N7) + 1, SEARCH(" ",N7,SEARCH(" ",N7)+1) - SEARCH(" ",N7) - 1)),(RIGHT(N7, SEARCH(" ",N7,1)-1))),myRGB(255, 255, 255)) ->  | O9: =IF($E$11>=O6-2, myRGB((LEFT(O7, SEARCH(" ",O7,1)-1)),(MID(O7, SEARCH(" ",O7) + 1, SEARCH(" ",O7,SEARCH(" ",O7)+1) - SEARCH(" ",O7) - 1)),(RIGHT(O7, SEARCH(" ",O7,1)-1))),myRGB(255, 255, 255)) ->  | P9: =IF($E$11>=P6-2, myRGB((LEFT(P7, SEARCH(" ",P7,1)-1)),(MID(P7, SEARCH(" ",P7) + 1, SEARCH(" ",P7,SEARCH(" ",P7)+1) - SEARCH(" ",P7) - 1)),(RIGHT(P7, SEARCH(" ",P7,1)-1))),myRGB(255, 255, 255)) ->  | Q9: =IF($E$11>=Q6-2, myRGB((LEFT(Q7, SEARCH(" ",Q7,1)-1)),(MID(Q7, SEARCH(" ",Q7) + 1, SEARCH(" ",Q7,SEARCH(" ",Q7)+1) - SEARCH(" ",Q7) - 1)),(RIGHT(Q7, SEARCH(" ",Q7,1)-1))),myRGB(255, 255, 255)) ->  | R9: =IF($E$11>=R6-2, myRGB((LEFT(R7, SEARCH(" ",R7,1)-1)),(MID(R7, SEARCH(" ",R7) + 1, SEARCH(" ",R7,SEARCH(" ",R7)+1) - SEARCH(" ",R7) - 1)),(RIGHT(R7, SEARCH(" ",R7,1)-1))),myRGB(255, 255, 255)) ->  | S9: =IF($E$11>=S6-2, myRGB((LEFT(S7, SEARCH(" ",S7,1)-1)),(MID(S7, SEARCH(" ",S7) + 1, SEARCH(" ",S7,SEARCH(" ",S7)+1) - SEARCH(" ",S7) - 1)),(RIGHT(S7, SEARCH(" ",S7,1)-1))),myRGB(255, 255, 255)) ->  | T9: =IF($E$11>=T6-2, myRGB((LEFT(T7, SEARCH(" ",T7,1)-1)),(MID(T7, SEARCH(" ",T7) + 1, SEARCH(" ",T7,SEARCH(" ",T7)+1) - SEARCH(" ",T7) - 1)),(RIGHT(T7, SEARCH(" ",T7,1)-1))),myRGB(255, 255, 255)) ->  | U9: =IF($E$11>=U6-2, myRGB((LEFT(U7, SEARCH(" ",U7,1)-1)),(MID(U7, SEARCH(" ",U7) + 1, SEARCH(" ",U7,SEARCH(" ",U7)+1) - SEARCH(" ",U7) - 1)),(RIGHT(U7, SEARCH(" ",U7,1)-1))),myRGB(255, 255, 255)) ->  | V9: =IF($E$11>=V6-2, myRGB((LEFT(V7, SEARCH(" ",V7,1)-1)),(MID(V7, SEARCH(" ",V7) + 1, SEARCH(" ",V7,SEARCH(" ",V7)+1) - SEARCH(" ",V7) - 1)),(RIGHT(V7, SEARCH(" ",V7,1)-1))),myRGB(255, 255, 255)) ->  | W9: =IF($E$11>=W6-2, myRGB((LEFT(W7, SEARCH(" ",W7,1)-1)),(MID(W7, SEARCH(" ",W7) + 1, SEARCH(" ",W7,SEARCH(" ",W7)+1) - SEARCH(" ",W7) - 1)),(RIGHT(W7, SEARCH(" ",W7,1)-1))),myRGB(255, 255, 255)) ->  | X9: =IF($E$11>=X6-2, myRGB((LEFT(X7, SEARCH(" ",X7,1)-1)),(MID(X7, SEARCH(" ",X7) + 1, SEARCH(" ",X7,SEARCH(" ",X7)+1) - SEARCH(" ",X7) - 1)),(RIGHT(X7, SEARCH(" ",X7,1)-1))),myRGB(255, 255, 255)) ->  | Y9: =IF($E$11>=Y6-2, myRGB((LEFT(Y7, SEARCH(" ",Y7,1)-1)),(MID(Y7, SEARCH(" ",Y7) + 1, SEARCH(" ",Y7,SEARCH(" ",Y7)+1) - SEARCH(" ",Y7) - 1)),(RIGHT(Y7, SEARCH(" ",Y7,1)-1))),myRGB(255, 255, 255)) ->  | Z9: =IF($E$11>=Z6-2, myRGB((LEFT(Z7, SEARCH(" ",Z7,1)-1)),(MID(Z7, SEARCH(" ",Z7) + 1, SEARCH(" ",Z7,SEARCH(" ",Z7)+1) - SEARCH(" ",Z7) - 1)),(RIGHT(Z7, SEARCH(" ",Z7,1)-1))),myRGB(255, 255, 255)) ->  | AA9: =IF($E$11>=AA6-2, myRGB((LEFT(AA7, SEARCH(" ",AA7,1)-1)),(MID(AA7, SEARCH(" ",AA7) + 1, SEARCH(" ",AA7,SEARCH(" ",AA7)+1) - SEARCH(" ",AA7) - 1)),(RIGHT(AA7, SEARCH(" ",AA7,1)-1))),myRGB(255, 255, 255)) ->  | AB9: =IF($E$11>=AB6-2, myRGB((LEFT(AB7, SEARCH(" ",AB7,1)-1)),(MID(AB7, SEARCH(" ",AB7) + 1, SEARCH(" ",AB7,SEARCH(" ",AB7)+1) - SEARCH(" ",AB7) - 1)),(RIGHT(AB7, SEARCH(" ",AB7,1)-1))),myRGB(255, 255, 255)) ->  | AC9: =IF($E$11>=AC6-2, myRGB((LEFT(AC7, SEARCH(" ",AC7,1)-1)),(MID(AC7, SEARCH(" ",AC7) + 1, SEARCH(" ",AC7,SEARCH(" ",AC7)+1) - SEARCH(" ",AC7) - 1)),(RIGHT(AC7, SEARCH(" ",AC7,1)-1))),myRGB(255, 255, 255)) ->  | AD9: =IF($E$11>=AD6-2, myRGB((LEFT(AD7, SEARCH(" ",AD7,1)-1)),(MID(AD7, SEARCH(" ",AD7) + 1, SEARCH(" ",AD7,SEARCH(" ",AD7)+1) - SEARCH(" ",AD7) - 1)),(RIGHT(AD7, SEARCH(" ",AD7,1)-1))),myRGB(255, 255, 255)) ->  | AE9: =IF($E$11>=AE6-2, myRGB((LEFT(AE7, SEARCH(" ",AE7,1)-1)),(MID(AE7, SEARCH(" ",AE7) + 1, SEARCH(" ",AE7,SEARCH(" ",AE7)+1) - SEARCH(" ",AE7) - 1)),(RIGHT(AE7, SEARCH(" ",AE7,1)-1))),myRGB(255, 255, 255)) ->  | AF9: =IF($E$11>=AF6-2, myRGB((LEFT(AF7, SEARCH(" ",AF7,1)-1)),(MID(AF7, SEARCH(" ",AF7) + 1, SEARCH(" ",AF7,SEARCH(" ",AF7)+1) - SEARCH(" ",AF7) - 1)),(RIGHT(AF7, SEARCH(" ",AF7,1)-1))),myRGB(255, 255, 255)) ->  | AG9: =IF($E$11>=AG6-2, myRGB((LEFT(AG7, SEARCH(" ",AG7,1)-1)),(MID(AG7, SEARCH(" ",AG7) + 1, SEARCH(" ",AG7,SEARCH(" ",AG7)+1) - SEARCH(" ",AG7) - 1)),(RIGHT(AG7, SEARCH(" ",AG7,1)-1))),myRGB(255, 255, 255)) ->  | AH9: =IF($E$11>=AH6-2, myRGB((LEFT(AH7, SEARCH(" ",AH7,1)-1)),(MID(AH7, SEARCH(" ",AH7) + 1, SEARCH(" ",AH7,SEARCH(" ",AH7)+1) - SEARCH(" ",AH7) - 1)),(RIGHT(AH7, SEARCH(" ",AH7,1)-1))),myRGB(255, 255, 255)) ->  | AI9: =IF($E$11>=AI6-2, myRGB((LEFT(AI7, SEARCH(" ",AI7,1)-1)),(MID(AI7, SEARCH(" ",AI7) + 1, SEARCH(" ",AI7,SEARCH(" ",AI7)+1) - SEARCH(" ",AI7) - 1)),(RIGHT(AI7, SEARCH(" ",AI7,1)-1))),myRGB(255, 255, 255)) ->  | AJ9: =IF($E$11>=AJ6-2, myRGB((LEFT(AJ7, SEARCH(" ",AJ7,1)-1)),(MID(AJ7, SEARCH(" ",AJ7) + 1, SEARCH(" ",AJ7,SEARCH(" ",AJ7)+1) - SEARCH(" ",AJ7) - 1)),(RIGHT(AJ7, SEARCH(" ",AJ7,1)-1))),myRGB(255, 255, 255)) ->  | AK9: =IF($E$11>=AK6-2, myRGB((LEFT(AK7, SEARCH(" ",AK7,1)-1)),(MID(AK7, SEARCH(" ",AK7) + 1, SEARCH(" ",AK7,SEARCH(" ",AK7)+1) - SEARCH(" ",AK7) - 1)),(RIGHT(AK7, SEARCH(" ",AK7,1)-1))),myRGB(255, 255, 255)) ->  | AL9: =IF($E$11>=AL6-2, myRGB((LEFT(AL7, SEARCH(" ",AL7,1)-1)),(MID(AL7, SEARCH(" ",AL7) + 1, SEARCH(" ",AL7,SEARCH(" ",AL7)+1) - SEARCH(" ",AL7) - 1)),(RIGHT(AL7, SEARCH(" ",AL7,1)-1))),myRGB(255, 255, 255)) ->  | AM9: =IF($E$11>=AM6-2, myRGB((LEFT(AM7, SEARCH(" ",AM7,1)-1)),(MID(AM7, SEARCH(" ",AM7) + 1, SEARCH(" ",AM7,SEARCH(" ",AM7)+1) - SEARCH(" ",AM7) - 1)),(RIGHT(AM7, SEARCH(" ",AM7,1)-1))),myRGB(255, 255, 255)) ->  | AN9: =IF($E$11>=AN6-2, myRGB((LEFT(AN7, SEARCH(" ",AN7,1)-1)),(MID(AN7, SEARCH(" ",AN7) + 1, SEARCH(" ",AN7,SEARCH(" ",AN7)+1) - SEARCH(" ",AN7) - 1)),(RIGHT(AN7, SEARCH(" ",AN7,1)-1))),myRGB(255, 255, 255)) ->  | AO9: =IF($E$11>=AO6-2, myRGB((LEFT(AO7, SEARCH(" ",AO7,1)-1)),(MID(AO7, SEARCH(" ",AO7) + 1, SEARCH(" ",AO7,SEARCH(" ",AO7)+1) - SEARCH(" ",AO7) - 1)),(RIGHT(AO7, SEARCH(" ",AO7,1)-1))),myRGB(255, 255, 255)) ->  | AP9: =IF($E$11>=AP6-2, myRGB((LEFT(AP7, SEARCH(" ",AP7,1)-1)),(MID(AP7, SEARCH(" ",AP7) + 1, SEARCH(" ",AP7,SEARCH(" ",AP7)+1) - SEARCH(" ",AP7) - 1)),(RIGHT(AP7, SEARCH(" ",AP7,1)-1))),myRGB(255, 255, 255)) ->  | AQ9: =IF($E$11>=AQ6-2, myRGB((LEFT(AQ7, SEARCH(" ",AQ7,1)-1)),(MID(AQ7, SEARCH(" ",AQ7) + 1, SEARCH(" ",AQ7,SEARCH(" ",AQ7)+1) - SEARCH(" ",AQ7) - 1)),(RIGHT(AQ7, SEARCH(" ",AQ7,1)-1))),myRGB(255, 255, 255)) ->  | AR9: =IF($E$11>=AR6-2, myRGB((LEFT(AR7, SEARCH(" ",AR7,1)-1)),(MID(AR7, SEARCH(" ",AR7) + 1, SEARCH(" ",AR7,SEARCH(" ",AR7)+1) - SEARCH(" ",AR7) - 1)),(RIGHT(AR7, SEARCH(" ",AR7,1)-1))),myRGB(255, 255, 255)) ->  | AS9: =IF($E$11>=AS6-2, myRGB((LEFT(AS7, SEARCH(" ",AS7,1)-1)),(MID(AS7, SEARCH(" ",AS7) + 1, SEARCH(" ",AS7,SEARCH(" ",AS7)+1) - SEARCH(" ",AS7) - 1)),(RIGHT(AS7, SEARCH(" ",AS7,1)-1))),myRGB(255, 255, 255)) ->  | AT9: =IF($E$11>=AT6-2, myRGB((LEFT(AT7, SEARCH(" ",AT7,1)-1)),(MID(AT7, SEARCH(" ",AT7) + 1, SEARCH(" ",AT7,SEARCH(" ",AT7)+1) - SEARCH(" ",AT7) - 1)),(RIGHT(AT7, SEARCH(" ",AT7,1)-1))),myRGB(255, 255, 255)) ->  | AU9: =IF($E$11>=AU6-2, myRGB((LEFT(AU7, SEARCH(" ",AU7,1)-1)),(MID(AU7, SEARCH(" ",AU7) + 1, SEARCH(" ",AU7,SEARCH(" ",AU7)+1) - SEARCH(" ",AU7) - 1)),(RIGHT(AU7, SEARCH(" ",AU7,1)-1))),myRGB(255, 255, 255)) ->  | AV9: =IF($E$11>=AV6-2, myRGB((LEFT(AV7, SEARCH(" ",AV7,1)-1)),(MID(AV7, SEARCH(" ",AV7) + 1, SEARCH(" ",AV7,SEARCH(" ",AV7)+1) - SEARCH(" ",AV7) - 1)),(RIGHT(AV7, SEARCH(" ",AV7,1)-1))),myRGB(255, 255, 255)) ->  | AW9: =IF($E$11>=AW6-2, myRGB((LEFT(AW7, SEARCH(" ",AW7,1)-1)),(MID(AW7, SEARCH(" ",AW7) + 1, SEARCH(" ",AW7,SEARCH(" ",AW7)+1) - SEARCH(" ",AW7) - 1)),(RIGHT(AW7, SEARCH(" ",AW7,1)-1))),myRGB(255, 255, 255)) ->  | AX9: =IF($E$11>=AX6-2, myRGB((LEFT(AX7, SEARCH(" ",AX7,1)-1)),(MID(AX7, SEARCH(" ",AX7) + 1, SEARCH(" ",AX7,SEARCH(" ",AX7)+1) - SEARCH(" ",AX7) - 1)),(RIGHT(AX7, SEARCH(" ",AX7,1)-1))),myRGB(255, 255, 255)) ->  | AY9: =IF($E$11>=AY6-2, myRGB((LEFT(AY7, SEARCH(" ",AY7,1)-1)),(MID(AY7, SEARCH(" ",AY7) + 1, SEARCH(" ",AY7,SEARCH(" ",AY7)+1) - SEARCH(" ",AY7) - 1)),(RIGHT(AY7, SEARCH(" ",AY7,1)-1))),myRGB(255, 255, 255)) -> 
B10: Darkest | C10: Second Colour: | E10: #000000
B11: Amount of Numbers In Between: | E11: 255 | I11: 44 | J11: 45 | K11: 46 | L11: 47 | M11: 48 | N11: 49 | O11: 50 | P11: 51 | Q11: 52 | R11: 53 | S11: 54 | T11: 55 | U11: 56 | V11: 57 | W11: 58 | X11: 59 | Y11: 60 | Z11: 61 | AA11: 62 | AB11: 63 | AC11: 64 | AD11: 65 | AE11: 66 | AF11: 67 | AG11: 68 | AH11: 69 | AI11: 70 | AJ11: 71 | AK11: 72 | AL11: 73 | AM11: 74 | AN11: 75 | AO11: 76 | AP11: 77 | AQ11: 78 | AR11: 79 | AS11: 80 | AT11: 81 | AU11: 82 | AV11: 83 | AW11: 84 | AX11: 85 | AY11: 86
H12: RGB | I12: =IF($E$11>=I11-2,((IF($D$14>=0,ROUND((LEFT($D$14, SEARCH(" ",$D$14,1)-1))-((((LEFT($D$14, SEARCH(" ",$D$14,1)-1))-(LEFT($D$17, SEARCH(" ",$D$17,1)-1)))/($E$11+1))*(I11-1)),0),(" ")))&" "&(IF($E$11>=0,ROUND((MID($D$14, SEARCH(" ",$D$14) + 1, SEARCH(" ",$D$14,SEARCH(" ",$D$14)+1) - SEARCH(" ",$D$14) - 1))-(((MID($D$14, SEARCH(" ",$D$14) + 1, SEARCH(" ",$D$14,SEARCH(" ",$D$14)+1) - SEARCH(" ",$D$14) - 1))-(MID($D$17, SEARCH(" ",$D$17) + 1, SEARCH(" ",$D$17,SEARCH(" ",$D$17)+1) - SEARCH(" ",$D$17) - 1)))/($E$11+1)),0),(" ")))&" "&(IF($E$11>=0,ROUND((RIGHT($D$14, SEARCH(" ",$D$14,1)-1))-(((RIGHT($D$14, SEARCH(" ",$D$14,1)-1))-(RIGHT($D$17, SEARCH(" ",$D$17,1)-1)))/($E$11+1)),0),(" ")))),"") -> 212 254 254 | J12: =IF($E$11>=J11-2,((IF($D$14>=0,ROUND((LEFT($D$14, SEARCH(" ",$D$14,1)-1))-((((LEFT($D$14, SEARCH(" ",$D$14,1)-1))-(LEFT($D$17, SEARCH(" ",$D$17,1)-1)))/($E$11+1))*(J11-1)),0),(" ")))&" "&(IF($E$11>=0,ROUND((MID($D$14, SEARCH(" ",$D$14) + 1, SEARCH(" ",$D$14,SEARCH(" ",$D$14)+1) - SEARCH(" ",$D$14) - 1))-(((MID($D$14, SEARCH(" ",$D$14) + 1, SEARCH(" ",$D$14,SEARCH(" ",$D$14)+1) - SEARCH(" ",$D$14) - 1))-(MID($D$17, SEARCH(" ",$D$17) + 1, SEARCH(" ",$D$17,SEARCH(" ",$D$17)+1) - SEARCH(" ",$D$17) - 1)))/($E$11+1)),0),(" ")))&" "&(IF($E$11>=0,ROUND((RIGHT($D$14, SEARCH(" ",$D$14,1)-1))-(((RIGHT($D$14, SEARCH(" ",$D$14,1)-1))-(RIGHT($D$17, SEARCH(" ",$D$17,1)-1)))/($E$11+1)),0),(" ")))),"") -> 211 254 254 | K12: 210 254 254 | L12: 209 254 254 | M12: 208 254 254 | N12: 207 254 254 | O12: 206 254 254 | P12: 205 254 254 | Q12: 204 254 254 | R12: 203 254 254 | S12: 202 254 254 | T12: 201 254 254 | U12: 200 254 254 | V12: 199 254 254 | W12: 198 254 254 | X12: 197 254 254 | Y12: 196 254 254 | Z12: 195 254 254 | AA12: 194 254 254 | AB12: 193 254 254 | AC12: 192 254 254 | AD12: 191 254 254 | AE12: 190 254 254 | AF12: 189 254 254 | AG12: 188 254 254 | AH12: 187 254 254 | AI12: 186 254 254 | AJ12: 185 254 254 | AK12: 184 254 254 | AL12: 183 254 254 | AM12: 182 254 254 | AN12: 181 254 254 | AO12: 180 254 254 | AP12: 179 254 254 | AQ12: 178 254 254 | AR12: 177 254 254 | AS12: 176 254 254 | AT12: 175 254 254 | AU12: 174 254 254 | AV12: 173 254 254 | AW12: 172 254 254 | AX12: 171 254 254 | AY12: 170 254 254
D13: First Colour | H13: HEX | I13: =IF($E$11>=I11-2,"#"&DEC2HEX((LEFT(I12,SEARCH(" ",I12,1)-1)),2)&DEC2HEX((MID(I12,SEARCH(" ",I12)+1,SEARCH(" ",I12,SEARCH(" ",I12)+1)-SEARCH(" ",I12)-1)),2)&DEC2HEX((RIGHT(I12,LEN(I12)-SEARCH(" ",I12,SEARCH(" ",I12)+1))),2),("")) -> #D4FEFE | J13: =IF($E$11>=J11-2,"#"&DEC2HEX((LEFT(J12,SEARCH(" ",J12,1)-1)),2)&DEC2HEX((MID(J12,SEARCH(" ",J12)+1,SEARCH(" ",J12,SEARCH(" ",J12)+1)-SEARCH(" ",J12)-1)),2)&DEC2HEX((RIGHT(J12,LEN(J12)-SEARCH(" ",J12,SEARCH(" ",J12)+1))),2),("")) -> #D3FEFE | K13: =IF($E$11>=K11-2,"#"&DEC2HEX((LEFT(K12,SEARCH(" ",K12,1)-1)),2)&DEC2HEX((MID(K12,SEARCH(" ",K12)+1,SEARCH(" ",K12,SEARCH(" ",K12)+1)-SEARCH(" ",K12)-1)),2)&DEC2HEX((RIGHT(K12,LEN(K12)-SEARCH(" ",K12,SEARCH(" ",K12)+1))),2),("")) -> #D2FEFE | L13: #D1FEFE | M13: #D0FEFE | N13: #CFFEFE | O13: #CEFEFE | P13: #CDFEFE | Q13: #CCFEFE | R13: #CBFEFE | S13: #CAFEFE | T13: #C9FEFE | U13: #C8FEFE | V13: #C7FEFE | W13: #C6FEFE | X13: #C5FEFE | Y13: #C4FEFE | Z13: #C3FEFE | AA13: #C2FEFE | AB13: #C1FEFE | AC13: #C0FEFE | AD13: #BFFEFE | AE13: #BEFEFE | AF13: #BDFEFE | AG13: #BCFEFE | AH13: #BBFEFE | AI13: #BAFEFE | AJ13: #B9FEFE | AK13: #B8FEFE | AL13: #B7FEFE | AM13: #B6FEFE | AN13: #B5FEFE | AO13: #B4FEFE | AP13: #B3FEFE | AQ13: #B2FEFE | AR13: #B1FEFE | AS13: #B0FEFE | AT13: #AFFEFE | AU13: #AEFEFE | AV13: #ADFEFE | AW13: #ACFEFE | AX13: #ABFEFE | AY13: #AAFEFE
D14: =IF(E8="HEX",(HEX2DEC(LEFT(SUBSTITUTE(E9,"#",""),2))&" "&HEX2DEC(MID(SUBSTITUTE(E9,"#",""),3,2))&" "&HEX2DEC(RIGHT(SUBSTITUTE(E9,"#",""),2))),(E6)) -> 255 255 255 | I14: =IF($E$11>=I11-2, myRGB((LEFT(I12, SEARCH(" ",I12,1)-1)),(MID(I12, SEARCH(" ",I12) + 1, SEARCH(" ",I12,SEARCH(" ",I12)+1) - SEARCH(" ",I12) - 1)),(RIGHT(I12, SEARCH(" ",I12,1)-1))),myRGB(255, 255, 255)) ->  | J14: =IF($E$11>=J11-2, myRGB((LEFT(J12, SEARCH(" ",J12,1)-1)),(MID(J12, SEARCH(" ",J12) + 1, SEARCH(" ",J12,SEARCH(" ",J12)+1) - SEARCH(" ",J12) - 1)),(RIGHT(J12, SEARCH(" ",J12,1)-1))),myRGB(255, 255, 255)) ->  | K14: =IF($E$11>=K11-2, myRGB((LEFT(K12, SEARCH(" ",K12,1)-1)),(MID(K12, SEARCH(" ",K12) + 1, SEARCH(" ",K12,SEARCH(" ",K12)+1) - SEARCH(" ",K12) - 1)),(RIGHT(K12, SEARCH(" ",K12,1)-1))),myRGB(255, 255, 255)) ->  | L14: =IF($E$11>=L11-2, myRGB((LEFT(L12, SEARCH(" ",L12,1)-1)),(MID(L12, SEARCH(" ",L12) + 1, SEARCH(" ",L12,SEARCH(" ",L12)+1) - SEARCH(" ",L12) - 1)),(RIGHT(L12, SEARCH(" ",L12,1)-1))),myRGB(255, 255, 255)) ->  | M14: =IF($E$11>=M11-2, myRGB((LEFT(M12, SEARCH(" ",M12,1)-1)),(MID(M12, SEARCH(" ",M12) + 1, SEARCH(" ",M12,SEARCH(" ",M12)+1) - SEARCH(" ",M12) - 1)),(RIGHT(M12, SEARCH(" ",M12,1)-1))),myRGB(255, 255, 255)) ->  | N14: =IF($E$11>=N11-2, myRGB((LEFT(N12, SEARCH(" ",N12,1)-1)),(MID(N12, SEARCH(" ",N12) + 1, SEARCH(" ",N12,SEARCH(" ",N12)+1) - SEARCH(" ",N12) - 1)),(RIGHT(N12, SEARCH(" ",N12,1)-1))),myRGB(255, 255, 255)) ->  | O14: =IF($E$11>=O11-2, myRGB((LEFT(O12, SEARCH(" ",O12,1)-1)),(MID(O12, SEARCH(" ",O12) + 1, SEARCH(" ",O12,SEARCH(" ",O12)+1) - SEARCH(" ",O12) - 1)),(RIGHT(O12, SEARCH(" ",O12,1)-1))),myRGB(255, 255, 255)) ->  | P14: =IF($E$11>=P11-2, myRGB((LEFT(P12, SEARCH(" ",P12,1)-1)),(MID(P12, SEARCH(" ",P12) + 1, SEARCH(" ",P12,SEARCH(" ",P12)+1) - SEARCH(" ",P12) - 1)),(RIGHT(P12, SEARCH(" ",P12,1)-1))),myRGB(255, 255, 255)) ->  | Q14: =IF($E$11>=Q11-2, myRGB((LEFT(Q12, SEARCH(" ",Q12,1)-1)),(MID(Q12, SEARCH(" ",Q12) + 1, SEARCH(" ",Q12,SEARCH(" ",Q12)+1) - SEARCH(" ",Q12) - 1)),(RIGHT(Q12, SEARCH(" ",Q12,1)-1))),myRGB(255, 255, 255)) ->  | R14: =IF($E$11>=R11-2, myRGB((LEFT(R12, SEARCH(" ",R12,1)-1)),(MID(R12, SEARCH(" ",R12) + 1, SEARCH(" ",R12,SEARCH(" ",R12)+1) - SEARCH(" ",R12) - 1)),(RIGHT(R12, SEARCH(" ",R12,1)-1))),myRGB(255, 255, 255)) ->  | S14: =IF($E$11>=S11-2, myRGB((LEFT(S12, SEARCH(" ",S12,1)-1)),(MID(S12, SEARCH(" ",S12) + 1, SEARCH(" ",S12,SEARCH(" ",S12)+1) - SEARCH(" ",S12) - 1)),(RIGHT(S12, SEARCH(" ",S12,1)-1))),myRGB(255, 255, 255)) ->  | T14: =IF($E$11>=T11-2, myRGB((LEFT(T12, SEARCH(" ",T12,1)-1)),(MID(T12, SEARCH(" ",T12) + 1, SEARCH(" ",T12,SEARCH(" ",T12)+1) - SEARCH(" ",T12) - 1)),(RIGHT(T12, SEARCH(" ",T12,1)-1))),myRGB(255, 255, 255)) ->  | U14: =IF($E$11>=U11-2, myRGB((LEFT(U12, SEARCH(" ",U12,1)-1)),(MID(U12, SEARCH(" ",U12) + 1, SEARCH(" ",U12,SEARCH(" ",U12)+1) - SEARCH(" ",U12) - 1)),(RIGHT(U12, SEARCH(" ",U12,1)-1))),myRGB(255, 255, 255)) ->  | V14: =IF($E$11>=V11-2, myRGB((LEFT(V12, SEARCH(" ",V12,1)-1)),(MID(V12, SEARCH(" ",V12) + 1, SEARCH(" ",V12,SEARCH(" ",V12)+1) - SEARCH(" ",V12) - 1)),(RIGHT(V12, SEARCH(" ",V12,1)-1))),myRGB(255, 255, 255)) ->  | W14: =IF($E$11>=W11-2, myRGB((LEFT(W12, SEARCH(" ",W12,1)-1)),(MID(W12, SEARCH(" ",W12) + 1, SEARCH(" ",W12,SEARCH(" ",W12)+1) - SEARCH(" ",W12) - 1)),(RIGHT(W12, SEARCH(" ",W12,1)-1))),myRGB(255, 255, 255)) ->  | X14: =IF($E$11>=X11-2, myRGB((LEFT(X12, SEARCH(" ",X12,1)-1)),(MID(X12, SEARCH(" ",X12) + 1, SEARCH(" ",X12,SEARCH(" ",X12)+1) - SEARCH(" ",X12) - 1)),(RIGHT(X12, SEARCH(" ",X12,1)-1))),myRGB(255, 255, 255)) ->  | Y14: =IF($E$11>=Y11-2, myRGB((LEFT(Y12, SEARCH(" ",Y12,1)-1)),(MID(Y12, SEARCH(" ",Y12) + 1, SEARCH(" ",Y12,SEARCH(" ",Y12)+1) - SEARCH(" ",Y12) - 1)),(RIGHT(Y12, SEARCH(" ",Y12,1)-1))),myRGB(255, 255, 255)) ->  | Z14: =IF($E$11>=Z11-2, myRGB((LEFT(Z12, SEARCH(" ",Z12,1)-1)),(MID(Z12, SEARCH(" ",Z12) + 1, SEARCH(" ",Z12,SEARCH(" ",Z12)+1) - SEARCH(" ",Z12) - 1)),(RIGHT(Z12, SEARCH(" ",Z12,1)-1))),myRGB(255, 255, 255)) ->  | AA14: =IF($E$11>=AA11-2, myRGB((LEFT(AA12, SEARCH(" ",AA12,1)-1)),(MID(AA12, SEARCH(" ",AA12) + 1, SEARCH(" ",AA12,SEARCH(" ",AA12)+1) - SEARCH(" ",AA12) - 1)),(RIGHT(AA12, SEARCH(" ",AA12,1)-1))),myRGB(255, 255, 255)) ->  | AB14: =IF($E$11>=AB11-2, myRGB((LEFT(AB12, SEARCH(" ",AB12,1)-1)),(MID(AB12, SEARCH(" ",AB12) + 1, SEARCH(" ",AB12,SEARCH(" ",AB12)+1) - SEARCH(" ",AB12) - 1)),(RIGHT(AB12, SEARCH(" ",AB12,1)-1))),myRGB(255, 255, 255)) ->  | AC14: =IF($E$11>=AC11-2, myRGB((LEFT(AC12, SEARCH(" ",AC12,1)-1)),(MID(AC12, SEARCH(" ",AC12) + 1, SEARCH(" ",AC12,SEARCH(" ",AC12)+1) - SEARCH(" ",AC12) - 1)),(RIGHT(AC12, SEARCH(" ",AC12,1)-1))),myRGB(255, 255, 255)) ->  | AD14: =IF($E$11>=AD11-2, myRGB((LEFT(AD12, SEARCH(" ",AD12,1)-1)),(MID(AD12, SEARCH(" ",AD12) + 1, SEARCH(" ",AD12,SEARCH(" ",AD12)+1) - SEARCH(" ",AD12) - 1)),(RIGHT(AD12, SEARCH(" ",AD12,1)-1))),myRGB(255, 255, 255)) ->  | AE14: =IF($E$11>=AE11-2, myRGB((LEFT(AE12, SEARCH(" ",AE12,1)-1)),(MID(AE12, SEARCH(" ",AE12) + 1, SEARCH(" ",AE12,SEARCH(" ",AE12)+1) - SEARCH(" ",AE12) - 1)),(RIGHT(AE12, SEARCH(" ",AE12,1)-1))),myRGB(255, 255, 255)) ->  | AF14: =IF($E$11>=AF11-2, myRGB((LEFT(AF12, SEARCH(" ",AF12,1)-1)),(MID(AF12, SEARCH(" ",AF12) + 1, SEARCH(" ",AF12,SEARCH(" ",AF12)+1) - SEARCH(" ",AF12) - 1)),(RIGHT(AF12, SEARCH(" ",AF12,1)-1))),myRGB(255, 255, 255)) ->  | AG14: =IF($E$11>=AG11-2, myRGB((LEFT(AG12, SEARCH(" ",AG12,1)-1)),(MID(AG12, SEARCH(" ",AG12) + 1, SEARCH(" ",AG12,SEARCH(" ",AG12)+1) - SEARCH(" ",AG12) - 1)),(RIGHT(AG12, SEARCH(" ",AG12,1)-1))),myRGB(255, 255, 255)) ->  | AH14: =IF($E$11>=AH11-2, myRGB((LEFT(AH12, SEARCH(" ",AH12,1)-1)),(MID(AH12, SEARCH(" ",AH12) + 1, SEARCH(" ",AH12,SEARCH(" ",AH12)+1) - SEARCH(" ",AH12) - 1)),(RIGHT(AH12, SEARCH(" ",AH12,1)-1))),myRGB(255, 255, 255)) ->  | AI14: =IF($E$11>=AI11-2, myRGB((LEFT(AI12, SEARCH(" ",AI12,1)-1)),(MID(AI12, SEARCH(" ",AI12) + 1, SEARCH(" ",AI12,SEARCH(" ",AI12)+1) - SEARCH(" ",AI12) - 1)),(RIGHT(AI12, SEARCH(" ",AI12,1)-1))),myRGB(255, 255, 255)) ->  | AJ14: =IF($E$11>=AJ11-2, myRGB((LEFT(AJ12, SEARCH(" ",AJ12,1)-1)),(MID(AJ12, SEARCH(" ",AJ12) + 1, SEARCH(" ",AJ12,SEARCH(" ",AJ12)+1) - SEARCH(" ",AJ12) - 1)),(RIGHT(AJ12, SEARCH(" ",AJ12,1)-1))),myRGB(255, 255, 255)) ->  | AK14: =IF($E$11>=AK11-2, myRGB((LEFT(AK12, SEARCH(" ",AK12,1)-1)),(MID(AK12, SEARCH(" ",AK12) + 1, SEARCH(" ",AK12,SEARCH(" ",AK12)+1) - SEARCH(" ",AK12) - 1)),(RIGHT(AK12, SEARCH(" ",AK12,1)-1))),myRGB(255, 255, 255)) ->  | AL14: =IF($E$11>=AL11-2, myRGB((LEFT(AL12, SEARCH(" ",AL12,1)-1)),(MID(AL12, SEARCH(" ",AL12) + 1, SEARCH(" ",AL12,SEARCH(" ",AL12)+1) - SEARCH(" ",AL12) - 1)),(RIGHT(AL12, SEARCH(" ",AL12,1)-1))),myRGB(255, 255, 255)) ->  | AM14: =IF($E$11>=AM11-2, myRGB((LEFT(AM12, SEARCH(" ",AM12,1)-1)),(MID(AM12, SEARCH(" ",AM12) + 1, SEARCH(" ",AM12,SEARCH(" ",AM12)+1) - SEARCH(" ",AM12) - 1)),(RIGHT(AM12, SEARCH(" ",AM12,1)-1))),myRGB(255, 255, 255)) ->  | AN14: =IF($E$11>=AN11-2, myRGB((LEFT(AN12, SEARCH(" ",AN12,1)-1)),(MID(AN12, SEARCH(" ",AN12) + 1, SEARCH(" ",AN12,SEARCH(" ",AN12)+1) - SEARCH(" ",AN12) - 1)),(RIGHT(AN12, SEARCH(" ",AN12,1)-1))),myRGB(255, 255, 255)) ->  | AO14: =IF($E$11>=AO11-2, myRGB((LEFT(AO12, SEARCH(" ",AO12,1)-1)),(MID(AO12, SEARCH(" ",AO12) + 1, SEARCH(" ",AO12,SEARCH(" ",AO12)+1) - SEARCH(" ",AO12) - 1)),(RIGHT(AO12, SEARCH(" ",AO12,1)-1))),myRGB(255, 255, 255)) ->  | AP14: =IF($E$11>=AP11-2, myRGB((LEFT(AP12, SEARCH(" ",AP12,1)-1)),(MID(AP12, SEARCH(" ",AP12) + 1, SEARCH(" ",AP12,SEARCH(" ",AP12)+1) - SEARCH(" ",AP12) - 1)),(RIGHT(AP12, SEARCH(" ",AP12,1)-1))),myRGB(255, 255, 255)) ->  | AQ14: =IF($E$11>=AQ11-2, myRGB((LEFT(AQ12, SEARCH(" ",AQ12,1)-1)),(MID(AQ12, SEARCH(" ",AQ12) + 1, SEARCH(" ",AQ12,SEARCH(" ",AQ12)+1) - SEARCH(" ",AQ12) - 1)),(RIGHT(AQ12, SEARCH(" ",AQ12,1)-1))),myRGB(255, 255, 255)) ->  | AR14: =IF($E$11>=AR11-2, myRGB((LEFT(AR12, SEARCH(" ",AR12,1)-1)),(MID(AR12, SEARCH(" ",AR12) + 1, SEARCH(" ",AR12,SEARCH(" ",AR12)+1) - SEARCH(" ",AR12) - 1)),(RIGHT(AR12, SEARCH(" ",AR12,1)-1))),myRGB(255, 255, 255)) ->  | AS14: =IF($E$11>=AS11-2, myRGB((LEFT(AS12, SEARCH(" ",AS12,1)-1)),(MID(AS12, SEARCH(" ",AS12) + 1, SEARCH(" ",AS12,SEARCH(" ",AS12)+1) - SEARCH(" ",AS12) - 1)),(RIGHT(AS12, SEARCH(" ",AS12,1)-1))),myRGB(255, 255, 255)) ->  | AT14: =IF($E$11>=AT11-2, myRGB((LEFT(AT12, SEARCH(" ",AT12,1)-1)),(MID(AT12, SEARCH(" ",AT12) + 1, SEARCH(" ",AT12,SEARCH(" ",AT12)+1) - SEARCH(" ",AT12) - 1)),(RIGHT(AT12, SEARCH(" ",AT12,1)-1))),myRGB(255, 255, 255)) ->  | AU14: =IF($E$11>=AU11-2, myRGB((LEFT(AU12, SEARCH(" ",AU12,1)-1)),(MID(AU12, SEARCH(" ",AU12) + 1, SEARCH(" ",AU12,SEARCH(" ",AU12)+1) - SEARCH(" ",AU12) - 1)),(RIGHT(AU12, SEARCH(" ",AU12,1)-1))),myRGB(255, 255, 255)) ->  | AV14: =IF($E$11>=AV11-2, myRGB((LEFT(AV12, SEARCH(" ",AV12,1)-1)),(MID(AV12, SEARCH(" ",AV12) + 1, SEARCH(" ",AV12,SEARCH(" ",AV12)+1) - SEARCH(" ",AV12) - 1)),(RIGHT(AV12, SEARCH(" ",AV12,1)-1))),myRGB(255, 255, 255)) ->  | AW14: =IF($E$11>=AW11-2, myRGB((LEFT(AW12, SEARCH(" ",AW12,1)-1)),(MID(AW12, SEARCH(" ",AW12) + 1, SEARCH(" ",AW12,SEARCH(" ",AW12)+1) - SEARCH(" ",AW12) - 1)),(RIGHT(AW12, SEARCH(" ",AW12,1)-1))),myRGB(255, 255, 255)) ->  | AX14: =IF($E$11>=AX11-2, myRGB((LEFT(AX12, SEARCH(" ",AX12,1)-1)),(MID(AX12, SEARCH(" ",AX12) + 1, SEARCH(" ",AX12,SEARCH(" ",AX12)+1) - SEARCH(" ",AX12) - 1)),(RIGHT(AX12, SEARCH(" ",AX12,1)-1))),myRGB(255, 255, 255)) ->  | AY14: =IF($E$11>=AY11-2, myRGB((LEFT(AY12, SEARCH(" ",AY12,1)-1)),(MID(AY12, SEARCH(" ",AY12) + 1, SEARCH(" ",AY12,SEARCH(" ",AY12)+1) - SEARCH(" ",AY12) - 1)),(RIGHT(AY12, SEARCH(" ",AY12,1)-1))),myRGB(255, 255, 255)) -> 
D16: Second Colour | I16: 87 | J16: 88 | K16: 89 | L16: 90 | M16: 91 | N16: 92 | O16: 93 | P16: 94 | Q16: 95 | R16: 96 | S16: 97 | T16: 98 | U16: 99 | V16: 100 | W16: 101 | X16: 102 | Y16: 103 | Z16: 104 | AA16: 105 | AB16: 106 | AC16: 107 | AD16: 108 | AE16: 109 | AF16: 110 | AG16: 111 | AH16: 112 | AI16: 113 | AJ16: 114 | AK16: 115 | AL16: 116 | AM16: 117 | AN16: 118 | AO16: 119 | AP16: 120 | AQ16: 121 | AR16: 122 | AS16: 123 | AT16: 124 | AU16: 125 | AV16: 126 | AW16: 127 | AX16: 128 | AY16: 129
D17: =IF(E8="HEX",(HEX2DEC(LEFT(SUBSTITUTE(E10,"#",""),2))&" "&HEX2DEC(MID(SUBSTITUTE(E10,"#",""),3,2))&" "&HEX2DEC(RIGHT(SUBSTITUTE(E10,"#",""),2))),(E7)) -> 000 000 000 | H17: RGB | I17: =IF($E$11>=I16-2,((IF($D$14>=0,ROUND((LEFT($D$14, SEARCH(" ",$D$14,1)-1))-((((LEFT($D$14, SEARCH(" ",$D$14,1)-1))-(LEFT($D$17, SEARCH(" ",$D$17,1)-1)))/($E$11+1))*(I16-1)),0),(" ")))&" "&(IF($E$11>=0,ROUND((MID($D$14, SEARCH(" ",$D$14) + 1, SEARCH(" ",$D$14,SEARCH(" ",$D$14)+1) - SEARCH(" ",$D$14) - 1))-(((MID($D$14, SEARCH(" ",$D$14) + 1, SEARCH(" ",$D$14,SEARCH(" ",$D$14)+1) - SEARCH(" ",$D$14) - 1))-(MID($D$17, SEARCH(" ",$D$17) + 1, SEARCH(" ",$D$17,SEARCH(" ",$D$17)+1) - SEARCH(" ",$D$17) - 1)))/($E$11+1)),0),(" ")))&" "&(IF($E$11>=0,ROUND((RIGHT($D$14, SEARCH(" ",$D$14,1)-1))-(((RIGHT($D$14, SEARCH(" ",$D$14,1)-1))-(RIGHT($D$17, SEARCH(" ",$D$17,1)-1)))/($E$11+1)),0),(" ")))),"") -> 169 254 254 | J17: =IF($E$11>=J16-2,((IF($D$14>=0,ROUND((LEFT($D$14, SEARCH(" ",$D$14,1)-1))-((((LEFT($D$14, SEARCH(" ",$D$14,1)-1))-(LEFT($D$17, SEARCH(" ",$D$17,1)-1)))/($E$11+1))*(J16-1)),0),(" ")))&" "&(IF($E$11>=0,ROUND((MID($D$14, SEARCH(" ",$D$14) + 1, SEARCH(" ",$D$14,SEARCH(" ",$D$14)+1) - SEARCH(" ",$D$14) - 1))-(((MID($D$14, SEARCH(" ",$D$14) + 1, SEARCH(" ",$D$14,SEARCH(" ",$D$14)+1) - SEARCH(" ",$D$14) - 1))-(MID($D$17, SEARCH(" ",$D$17) + 1, SEARCH(" ",$D$17,SEARCH(" ",$D$17)+1) - SEARCH(" ",$D$17) - 1)))/($E$11+1)),0),(" ")))&" "&(IF($E$11>=0,ROUND((RIGHT($D$14, SEARCH(" ",$D$14,1)-1))-(((RIGHT($D$14, SEARCH(" ",$D$14,1)-1))-(RIGHT($D$17, SEARCH(" ",$D$17,1)-1)))/($E$11+1)),0),(" ")))),"") -> 168 254 254 | K17: 167 254 254 | L17: 166 254 254 | M17: 165 254 254 | N17: 164 254 254 | O17: 163 254 254 | P17: 162 254 254 | Q17: 161 254 254 | R17: 160 254 254 | S17: 159 254 254 | T17: 158 254 254 | U17: 157 254 254 | V17: 156 254 254 | W17: 155 254 254 | X17: 154 254 254 | Y17: 153 254 254 | Z17: 152 254 254 | AA17: 151 254 254 | AB17: 150 254 254 | AC17: 149 254 254 | AD17: 148 254 254 | AE17: 147 254 254 | AF17: 146 254 254 | AG17: 145 254 254 | AH17: 144 254 254 | AI17: 143 254 254 | AJ17: 142 254 254 | AK17: 141 254 254 | AL17: 140 254 254 | AM17: 139 254 254 | AN17: 138 254 254 | AO17: 137 254 254 | AP17: 136 254 254 | AQ17: 135 254 254 | AR17: 134 254 254 | AS17: 133 254 254 | AT17: 132 254 254 | AU17: 131 254 254 | AV17: 130 254 254 | AW17: 129 254 254 | AX17: 128 254 254 | AY17: 128 254 254
H18: HEX | I18: =IF($E$11>=I16-2,"#"&DEC2HEX((LEFT(I17,SEARCH(" ",I17,1)-1)),2)&DEC2HEX((MID(I17,SEARCH(" ",I17)+1,SEARCH(" ",I17,SEARCH(" ",I17)+1)-SEARCH(" ",I17)-1)),2)&DEC2HEX((RIGHT(I17,LEN(I17)-SEARCH(" ",I17,SEARCH(" ",I17)+1))),2),("")) -> #A9FEFE | J18: =IF($E$11>=J16-2,"#"&DEC2HEX((LEFT(J17,SEARCH(" ",J17,1)-1)),2)&DEC2HEX((MID(J17,SEARCH(" ",J17)+1,SEARCH(" ",J17,SEARCH(" ",J17)+1)-SEARCH(" ",J17)-1)),2)&DEC2HEX((RIGHT(J17,LEN(J17)-SEARCH(" ",J17,SEARCH(" ",J17)+1))),2),("")) -> #A8FEFE | K18: =IF($E$11>=K16-2,"#"&DEC2HEX((LEFT(K17,SEARCH(" ",K17,1)-1)),2)&DEC2HEX((MID(K17,SEARCH(" ",K17)+1,SEARCH(" ",K17,SEARCH(" ",K17)+1)-SEARCH(" ",K17)-1)),2)&DEC2HEX((RIGHT(K17,LEN(K17)-SEARCH(" ",K17,SEARCH(" ",K17)+1))),2),("")) -> #A7FEFE | L18: #A6FEFE | M18: #A5FEFE | N18: #A4FEFE | O18: #A3FEFE | P18: #A2FEFE | Q18: #A1FEFE | R18: #A0FEFE | S18: #9FFEFE | T18: #9EFEFE | U18: #9DFEFE | V18: #9CFEFE | W18: #9BFEFE | X18: #9AFEFE | Y18: #99FEFE | Z18: #98FEFE | AA18: #97FEFE | AB18: #96FEFE | AC18: #95FEFE | AD18: #94FEFE | AE18: #93FEFE | AF18: #92FEFE | AG18: #91FEFE | AH18: #90FEFE | AI18: #8FFEFE | AJ18: #8EFEFE | AK18: #8DFEFE | AL18: #8CFEFE | AM18: #8BFEFE | AN18: #8AFEFE | AO18: #89FEFE | AP18: #88FEFE | AQ18: #87FEFE | AR18: #86FEFE | AS18: #85FEFE | AT18: #84FEFE | AU18: #83FEFE | AV18: #82FEFE | AW18: #81FEFE | AX18: #80FEFE | AY18: #80FEFE
I19: =IF($E$11>=I16-2, myRGB((LEFT(I17, SEARCH(" ",I17,1)-1)),(MID(I17, SEARCH(" ",I17) + 1, SEARCH(" ",I17,SEARCH(" ",I17)+1) - SEARCH(" ",I17) - 1)),(RIGHT(I17, SEARCH(" ",I17,1)-1))),myRGB(255, 255, 255)) ->  | J19: =IF($E$11>=J16-2, myRGB((LEFT(J17, SEARCH(" ",J17,1)-1)),(MID(J17, SEARCH(" ",J17) + 1, SEARCH(" ",J17,SEARCH(" ",J17)+1) - SEARCH(" ",J17) - 1)),(RIGHT(J17, SEARCH(" ",J17,1)-1))),myRGB(255, 255, 255)) ->  | K19: =IF($E$11>=K16-2, myRGB((LEFT(K17, SEARCH(" ",K17,1)-1)),(MID(K17, SEARCH(" ",K17) + 1, SEARCH(" ",K17,SEARCH(" ",K17)+1) - SEARCH(" ",K17) - 1)),(RIGHT(K17, SEARCH(" ",K17,1)-1))),myRGB(255, 255, 255)) ->  | L19: =IF($E$11>=L16-2, myRGB((LEFT(L17, SEARCH(" ",L17,1)-1)),(MID(L17, SEARCH(" ",L17) + 1, SEARCH(" ",L17,SEARCH(" ",L17)+1) - SEARCH(" ",L17) - 1)),(RIGHT(L17, SEARCH(" ",L17,1)-1))),myRGB(255, 255, 255)) ->  | M19: =IF($E$11>=M16-2, myRGB((LEFT(M17, SEARCH(" ",M17,1)-1)),(MID(M17, SEARCH(" ",M17) + 1, SEARCH(" ",M17,SEARCH(" ",M17)+1) - SEARCH(" ",M17) - 1)),(RIGHT(M17, SEARCH(" ",M17,1)-1))),myRGB(255, 255, 255)) ->  | N19: =IF($E$11>=N16-2, myRGB((LEFT(N17, SEARCH(" ",N17,1)-1)),(MID(N17, SEARCH(" ",N17) + 1, SEARCH(" ",N17,SEARCH(" ",N17)+1) - SEARCH(" ",N17) - 1)),(RIGHT(N17, SEARCH(" ",N17,1)-1))),myRGB(255, 255, 255)) ->  | O19: =IF($E$11>=O16-2, myRGB((LEFT(O17, SEARCH(" ",O17,1)-1)),(MID(O17, SEARCH(" ",O17) + 1, SEARCH(" ",O17,SEARCH(" ",O17)+1) - SEARCH(" ",O17) - 1)),(RIGHT(O17, SEARCH(" ",O17,1)-1))),myRGB(255, 255, 255)) ->  | P19: =IF($E$11>=P16-2, myRGB((LEFT(P17, SEARCH(" ",P17,1)-1)),(MID(P17, SEARCH(" ",P17) + 1, SEARCH(" ",P17,SEARCH(" ",P17)+1) - SEARCH(" ",P17) - 1)),(RIGHT(P17, SEARCH(" ",P17,1)-1))),myRGB(255, 255, 255)) ->  | Q19: =IF($E$11>=Q16-2, myRGB((LEFT(Q17, SEARCH(" ",Q17,1)-1)),(MID(Q17, SEARCH(" ",Q17) + 1, SEARCH(" ",Q17,SEARCH(" ",Q17)+1) - SEARCH(" ",Q17) - 1)),(RIGHT(Q17, SEARCH(" ",Q17,1)-1))),myRGB(255, 255, 255)) ->  | R19: =IF($E$11>=R16-2, myRGB((LEFT(R17, SEARCH(" ",R17,1)-1)),(MID(R17, SEARCH(" ",R17) + 1, SEARCH(" ",R17,SEARCH(" ",R17)+1) - SEARCH(" ",R17) - 1)),(RIGHT(R17, SEARCH(" ",R17,1)-1))),myRGB(255, 255, 255)) ->  | S19: =IF($E$11>=S16-2, myRGB((LEFT(S17, SEARCH(" ",S17,1)-1)),(MID(S17, SEARCH(" ",S17) + 1, SEARCH(" ",S17,SEARCH(" ",S17)+1) - SEARCH(" ",S17) - 1)),(RIGHT(S17, SEARCH(" ",S17,1)-1))),myRGB(255, 255, 255)) ->  | T19: =IF($E$11>=T16-2, myRGB((LEFT(T17, SEARCH(" ",T17,1)-1)),(MID(T17, SEARCH(" ",T17) + 1, SEARCH(" ",T17,SEARCH(" ",T17)+1) - SEARCH(" ",T17) - 1)),(RIGHT(T17, SEARCH(" ",T17,1)-1))),myRGB(255, 255, 255)) ->  | U19: =IF($E$11>=U16-2, myRGB((LEFT(U17, SEARCH(" ",U17,1)-1)),(MID(U17, SEARCH(" ",U17) + 1, SEARCH(" ",U17,SEARCH(" ",U17)+1) - SEARCH(" ",U17) - 1)),(RIGHT(U17, SEARCH(" ",U17,1)-1))),myRGB(255, 255, 255)) ->  | V19: =IF($E$11>=V16-2, myRGB((LEFT(V17, SEARCH(" ",V17,1)-1)),(MID(V17, SEARCH(" ",V17) + 1, SEARCH(" ",V17,SEARCH(" ",V17)+1) - SEARCH(" ",V17) - 1)),(RIGHT(V17, SEARCH(" ",V17,1)-1))),myRGB(255, 255, 255)) ->  | W19: =IF($E$11>=W16-2, myRGB((LEFT(W17, SEARCH(" ",W17,1)-1)),(MID(W17, SEARCH(" ",W17) + 1, SEARCH(" ",W17,SEARCH(" ",W17)+1) - SEARCH(" ",W17) - 1)),(RIGHT(W17, SEARCH(" ",W17,1)-1))),myRGB(255, 255, 255)) ->  | X19: =IF($E$11>=X16-2, myRGB((LEFT(X17, SEARCH(" ",X17,1)-1)),(MID(X17, SEARCH(" ",X17) + 1, SEARCH(" ",X17,SEARCH(" ",X17)+1) - SEARCH(" ",X17) - 1)),(RIGHT(X17, SEARCH(" ",X17,1)-1))),myRGB(255, 255, 255)) ->  | Y19: =IF($E$11>=Y16-2, myRGB((LEFT(Y17, SEARCH(" ",Y17,1)-1)),(MID(Y17, SEARCH(" ",Y17) + 1, SEARCH(" ",Y17,SEARCH(" ",Y17)+1) - SEARCH(" ",Y17) - 1)),(RIGHT(Y17, SEARCH(" ",Y17,1)-1))),myRGB(255, 255, 255)) ->  | Z19: =IF($E$11>=Z16-2, myRGB((LEFT(Z17, SEARCH(" ",Z17,1)-1)),(MID(Z17, SEARCH(" ",Z17) + 1, SEARCH(" ",Z17,SEARCH(" ",Z17)+1) - SEARCH(" ",Z17) - 1)),(RIGHT(Z17, SEARCH(" ",Z17,1)-1))),myRGB(255, 255, 255)) ->  | AA19: =IF($E$11>=AA16-2, myRGB((LEFT(AA17, SEARCH(" ",AA17,1)-1)),(MID(AA17, SEARCH(" ",AA17) + 1, SEARCH(" ",AA17,SEARCH(" ",AA17)+1) - SEARCH(" ",AA17) - 1)),(RIGHT(AA17, SEARCH(" ",AA17,1)-1))),myRGB(255, 255, 255)) ->  | AB19: =IF($E$11>=AB16-2, myRGB((LEFT(AB17, SEARCH(" ",AB17,1)-1)),(MID(AB17, SEARCH(" ",AB17) + 1, SEARCH(" ",AB17,SEARCH(" ",AB17)+1) - SEARCH(" ",AB17) - 1)),(RIGHT(AB17, SEARCH(" ",AB17,1)-1))),myRGB(255, 255, 255)) ->  | AC19: =IF($E$11>=AC16-2, myRGB((LEFT(AC17, SEARCH(" ",AC17,1)-1)),(MID(AC17, SEARCH(" ",AC17) + 1, SEARCH(" ",AC17,SEARCH(" ",AC17)+1) - SEARCH(" ",AC17) - 1)),(RIGHT(AC17, SEARCH(" ",AC17,1)-1))),myRGB(255, 255, 255)) ->  | AD19: =IF($E$11>=AD16-2, myRGB((LEFT(AD17, SEARCH(" ",AD17,1)-1)),(MID(AD17, SEARCH(" ",AD17) + 1, SEARCH(" ",AD17,SEARCH(" ",AD17)+1) - SEARCH(" ",AD17) - 1)),(RIGHT(AD17, SEARCH(" ",AD17,1)-1))),myRGB(255, 255, 255)) ->  | AE19: =IF($E$11>=AE16-2, myRGB((LEFT(AE17, SEARCH(" ",AE17,1)-1)),(MID(AE17, SEARCH(" ",AE17) + 1, SEARCH(" ",AE17,SEARCH(" ",AE17)+1) - SEARCH(" ",AE17) - 1)),(RIGHT(AE17, SEARCH(" ",AE17,1)-1))),myRGB(255, 255, 255)) ->  | AF19: =IF($E$11>=AF16-2, myRGB((LEFT(AF17, SEARCH(" ",AF17,1)-1)),(MID(AF17, SEARCH(" ",AF17) + 1, SEARCH(" ",AF17,SEARCH(" ",AF17)+1) - SEARCH(" ",AF17) - 1)),(RIGHT(AF17, SEARCH(" ",AF17,1)-1))),myRGB(255, 255, 255)) ->  | AG19: =IF($E$11>=AG16-2, myRGB((LEFT(AG17, SEARCH(" ",AG17,1)-1)),(MID(AG17, SEARCH(" ",AG17) + 1, SEARCH(" ",AG17,SEARCH(" ",AG17)+1) - SEARCH(" ",AG17) - 1)),(RIGHT(AG17, SEARCH(" ",AG17,1)-1))),myRGB(255, 255, 255)) ->  | AH19: =IF($E$11>=AH16-2, myRGB((LEFT(AH17, SEARCH(" ",AH17,1)-1)),(MID(AH17, SEARCH(" ",AH17) + 1, SEARCH(" ",AH17,SEARCH(" ",AH17)+1) - SEARCH(" ",AH17) - 1)),(RIGHT(AH17, SEARCH(" ",AH17,1)-1))),myRGB(255, 255, 255)) ->  | AI19: =IF($E$11>=AI16-2, myRGB((LEFT(AI17, SEARCH(" ",AI17,1)-1)),(MID(AI17, SEARCH(" ",AI17) + 1, SEARCH(" ",AI17,SEARCH(" ",AI17)+1) - SEARCH(" ",AI17) - 1)),(RIGHT(AI17, SEARCH(" ",AI17,1)-1))),myRGB(255, 255, 255)) ->  | AJ19: =IF($E$11>=AJ16-2, myRGB((LEFT(AJ17, SEARCH(" ",AJ17,1)-1)),(MID(AJ17, SEARCH(" ",AJ17) + 1, SEARCH(" ",AJ17,SEARCH(" ",AJ17)+1) - SEARCH(" ",AJ17) - 1)),(RIGHT(AJ17, SEARCH(" ",AJ17,1)-1))),myRGB(255, 255, 255)) ->  | AK19: =IF($E$11>=AK16-2, myRGB((LEFT(AK17, SEARCH(" ",AK17,1)-1)),(MID(AK17, SEARCH(" ",AK17) + 1, SEARCH(" ",AK17,SEARCH(" ",AK17)+1) - SEARCH(" ",AK17) - 1)),(RIGHT(AK17, SEARCH(" ",AK17,1)-1))),myRGB(255, 255, 255)) ->  | AL19: =IF($E$11>=AL16-2, myRGB((LEFT(AL17, SEARCH(" ",AL17,1)-1)),(MID(AL17, SEARCH(" ",AL17) + 1, SEARCH(" ",AL17,SEARCH(" ",AL17)+1) - SEARCH(" ",AL17) - 1)),(RIGHT(AL17, SEARCH(" ",AL17,1)-1))),myRGB(255, 255, 255)) ->  | AM19: =IF($E$11>=AM16-2, myRGB((LEFT(AM17, SEARCH(" ",AM17,1)-1)),(MID(AM17, SEARCH(" ",AM17) + 1, SEARCH(" ",AM17,SEARCH(" ",AM17)+1) - SEARCH(" ",AM17) - 1)),(RIGHT(AM17, SEARCH(" ",AM17,1)-1))),myRGB(255, 255, 255)) ->  | AN19: =IF($E$11>=AN16-2, myRGB((LEFT(AN17, SEARCH(" ",AN17,1)-1)),(MID(AN17, SEARCH(" ",AN17) + 1, SEARCH(" ",AN17,SEARCH(" ",AN17)+1) - SEARCH(" ",AN17) - 1)),(RIGHT(AN17, SEARCH(" ",AN17,1)-1))),myRGB(255, 255, 255)) ->  | AO19: =IF($E$11>=AO16-2, myRGB((LEFT(AO17, SEARCH(" ",AO17,1)-1)),(MID(AO17, SEARCH(" ",AO17) + 1, SEARCH(" ",AO17,SEARCH(" ",AO17)+1) - SEARCH(" ",AO17) - 1)),(RIGHT(AO17, SEARCH(" ",AO17,1)-1))),myRGB(255, 255, 255)) ->  | AP19: =IF($E$11>=AP16-2, myRGB((LEFT(AP17, SEARCH(" ",AP17,1)-1)),(MID(AP17, SEARCH(" ",AP17) + 1, SEARCH(" ",AP17,SEARCH(" ",AP17)+1) - SEARCH(" ",AP17) - 1)),(RIGHT(AP17, SEARCH(" ",AP17,1)-1))),myRGB(255, 255, 255)) ->  | AQ19: =IF($E$11>=AQ16-2, myRGB((LEFT(AQ17, SEARCH(" ",AQ17,1)-1)),(MID(AQ17, SEARCH(" ",AQ17) + 1, SEARCH(" ",AQ17,SEARCH(" ",AQ17)+1) - SEARCH(" ",AQ17) - 1)),(RIGHT(AQ17, SEARCH(" ",AQ17,1)-1))),myRGB(255, 255, 255)) ->  | AR19: =IF($E$11>=AR16-2, myRGB((LEFT(AR17, SEARCH(" ",AR17,1)-1)),(MID(AR17, SEARCH(" ",AR17) + 1, SEARCH(" ",AR17,SEARCH(" ",AR17)+1) - SEARCH(" ",AR17) - 1)),(RIGHT(AR17, SEARCH(" ",AR17,1)-1))),myRGB(255, 255, 255)) ->  | AS19: =IF($E$11>=AS16-2, myRGB((LEFT(AS17, SEARCH(" ",AS17,1)-1)),(MID(AS17, SEARCH(" ",AS17) + 1, SEARCH(" ",AS17,SEARCH(" ",AS17)+1) - SEARCH(" ",AS17) - 1)),(RIGHT(AS17, SEARCH(" ",AS17,1)-1))),myRGB(255, 255, 255)) ->  | AT19: =IF($E$11>=AT16-2, myRGB((LEFT(AT17, SEARCH(" ",AT17,1)-1)),(MID(AT17, SEARCH(" ",AT17) + 1, SEARCH(" ",AT17,SEARCH(" ",AT17)+1) - SEARCH(" ",AT17) - 1)),(RIGHT(AT17, SEARCH(" ",AT17,1)-1))),myRGB(255, 255, 255)) ->  | AU19: =IF($E$11>=AU16-2, myRGB((LEFT(AU17, SEARCH(" ",AU17,1)-1)),(MID(AU17, SEARCH(" ",AU17) + 1, SEARCH(" ",AU17,SEARCH(" ",AU17)+1) - SEARCH(" ",AU17) - 1)),(RIGHT(AU17, SEARCH(" ",AU17,1)-1))),myRGB(255, 255, 255)) ->  | AV19: =IF($E$11>=AV16-2, myRGB((LEFT(AV17, SEARCH(" ",AV17,1)-1)),(MID(AV17, SEARCH(" ",AV17) + 1, SEARCH(" ",AV17,SEARCH(" ",AV17)+1) - SEARCH(" ",AV17) - 1)),(RIGHT(AV17, SEARCH(" ",AV17,1)-1))),myRGB(255, 255, 255)) ->  | AW19: =IF($E$11>=AW16-2, myRGB((LEFT(AW17, SEARCH(" ",AW17,1)-1)),(MID(AW17, SEARCH(" ",AW17) + 1, SEARCH(" ",AW17,SEARCH(" ",AW17)+1) - SEARCH(" ",AW17) - 1)),(RIGHT(AW17, SEARCH(" ",AW17,1)-1))),myRGB(255, 255, 255)) ->  | AX19: =IF($E$11>=AX16-2, myRGB((LEFT(AX17, SEARCH(" ",AX17,1)-1)),(MID(AX17, SEARCH(" ",AX17) + 1, SEARCH(" ",AX17,SEARCH(" ",AX17)+1) - SEARCH(" ",AX17) - 1)),(RIGHT(AX17, SEARCH(" ",AX17,1)-1))),myRGB(255, 255, 255)) ->  | AY19: =IF($E$11>=AY16-2, myRGB((LEFT(AY17, SEARCH(" ",AY17,1)-1)),(MID(AY17, SEARCH(" ",AY17) + 1, SEARCH(" ",AY17,SEARCH(" ",AY17)+1) - SEARCH(" ",AY17) - 1)),(RIGHT(AY17, SEARCH(" ",AY17,1)-1))),myRGB(255, 255, 255)) -> 
I21: 130 | J21: 131 | K21: 132 | L21: 133 | M21: 134 | N21: 135 | O21: 136 | P21: 137 | Q21: 138 | R21: 139 | S21: 140 | T21: 141 | U21: 142 | V21: 143 | W21: 144 | X21: 145 | Y21: 146 | Z21: 147 | AA21: 148 | AB21: 149 | AC21: 150 | AD21: 151 | AE21: 152 | AF21: 153 | AG21: 154 | AH21: 155 | AI21: 156 | AJ21: 157 | AK21: 158 | AL21: 159 | AM21: 160 | AN21: 161 | AO21: 162 | AP21: 163 | AQ21: 164 | AR21: 165 | AS21: 166 | AT21: 167 | AU21: 168 | AV21: 169 | AW21: 170 | AX21: 171 | AY21: 172
H22: RGB | I22: =IF($E$11>=I21-2,((IF($D$14>=0,ROUND((LEFT($D$14, SEARCH(" ",$D$14,1)-1))-((((LEFT($D$14, SEARCH(" ",$D$14,1)-1))-(LEFT($D$17, SEARCH(" ",$D$17,1)-1)))/($E$11+1))*(I21-1)),0),(" ")))&" "&(IF($E$11>=0,ROUND((MID($D$14, SEARCH(" ",$D$14) + 1, SEARCH(" ",$D$14,SEARCH(" ",$D$14)+1) - SEARCH(" ",$D$14) - 1))-(((MID($D$14, SEARCH(" ",$D$14) + 1, SEARCH(" ",$D$14,SEARCH(" ",$D$14)+1) - SEARCH(" ",$D$14) - 1))-(MID($D$17, SEARCH(" ",$D$17) + 1, SEARCH(" ",$D$17,SEARCH(" ",$D$17)+1) - SEARCH(" ",$D$17) - 1)))/($E$11+1)),0),(" ")))&" "&(IF($E$11>=0,ROUND((RIGHT($D$14, SEARCH(" ",$D$14,1)-1))-(((RIGHT($D$14, SEARCH(" ",$D$14,1)-1))-(RIGHT($D$17, SEARCH(" ",$D$17,1)-1)))/($E$11+1)),0),(" ")))),"") -> 127 254 254 | J22: =IF($E$11>=J21-2,((IF($D$14>=0,ROUND((LEFT($D$14, SEARCH(" ",$D$14,1)-1))-((((LEFT($D$14, SEARCH(" ",$D$14,1)-1))-(LEFT($D$17, SEARCH(" ",$D$17,1)-1)))/($E$11+1))*(J21-1)),0),(" ")))&" "&(IF($E$11>=0,ROUND((MID($D$14, SEARCH(" ",$D$14) + 1, SEARCH(" ",$D$14,SEARCH(" ",$D$14)+1) - SEARCH(" ",$D$14) - 1))-(((MID($D$14, SEARCH(" ",$D$14) + 1, SEARCH(" ",$D$14,SEARCH(" ",$D$14)+1) - SEARCH(" ",$D$14) - 1))-(MID($D$17, SEARCH(" ",$D$17) + 1, SEARCH(" ",$D$17,SEARCH(" ",$D$17)+1) - SEARCH(" ",$D$17) - 1)))/($E$11+1)),0),(" ")))&" "&(IF($E$11>=0,ROUND((RIGHT($D$14, SEARCH(" ",$D$14,1)-1))-(((RIGHT($D$14, SEARCH(" ",$D$14,1)-1))-(RIGHT($D$17, SEARCH(" ",$D$17,1)-1)))/($E$11+1)),0),(" ")))),"") -> 126 254 254 | K22: 125 254 254 | L22: 124 254 254 | M22: 123 254 254 | N22: 122 254 254 | O22: 121 254 254 | P22: 120 254 254 | Q22: 119 254 254 | R22: 118 254 254 | S22: 117 254 254 | T22: 116 254 254 | U22: 115 254 254 | V22: 114 254 254 | W22: 113 254 254 | X22: 112 254 254 | Y22: 111 254 254 | Z22: 110 254 254 | AA22: 109 254 254 | AB22: 108 254 254 | AC22: 107 254 254 | AD22: 106 254 254 | AE22: 105 254 254 | AF22: 104 254 254 | AG22: 103 254 254 | AH22: 102 254 254 | AI22: 101 254 254 | AJ22: 100 254 254 | AK22: 99 254 254 | AL22: 98 254 254 | AM22: 97 254 254 | AN22: 96 254 254 | AO22: 95 254 254 | AP22: 94 254 254 | AQ22: 93 254 254 | AR22: 92 254 254 | AS22: 91 254 254 | AT22: 90 254 254 | AU22: 89 254 254 | AV22: 88 254 254 | AW22: 87 254 254 | AX22: 86 254 254 | AY22: 85 254 254
H23: HEX | I23: =IF($E$11>=I21-2,"#"&DEC2HEX((LEFT(I22,SEARCH(" ",I22,1)-1)),2)&DEC2HEX((MID(I22,SEARCH(" ",I22)+1,SEARCH(" ",I22,SEARCH(" ",I22)+1)-SEARCH(" ",I22)-1)),2)&DEC2HEX((RIGHT(I22,LEN(I22)-SEARCH(" ",I22,SEARCH(" ",I22)+1))),2),("")) -> #7FFEFE | J23: =IF($E$11>=J21-2,"#"&DEC2HEX((LEFT(J22,SEARCH(" ",J22,1)-1)),2)&DEC2HEX((MID(J22,SEARCH(" ",J22)+1,SEARCH(" ",J22,SEARCH(" ",J22)+1)-SEARCH(" ",J22)-1)),2)&DEC2HEX((RIGHT(J22,LEN(J22)-SEARCH(" ",J22,SEARCH(" ",J22)+1))),2),("")) -> #7EFEFE | K23: =IF($E$11>=K21-2,"#"&DEC2HEX((LEFT(K22,SEARCH(" ",K22,1)-1)),2)&DEC2HEX((MID(K22,SEARCH(" ",K22)+1,SEARCH(" ",K22,SEARCH(" ",K22)+1)-SEARCH(" ",K22)-1)),2)&DEC2HEX((RIGHT(K22,LEN(K22)-SEARCH(" ",K22,SEARCH(" ",K22)+1))),2),("")) -> #7DFEFE | L23: #7CFEFE | M23: #7BFEFE | N23: #7AFEFE | O23: #79FEFE | P23: #78FEFE | Q23: #77FEFE | R23: #76FEFE | S23: #75FEFE | T23: #74FEFE | U23: #73FEFE | V23: #72FEFE | W23: #71FEFE | X23: #70FEFE | Y23: #6FFEFE | Z23: #6EFEFE | AA23: #6DFEFE | AB23: #6CFEFE | AC23: #6BFEFE | AD23: #6AFEFE | AE23: #69FEFE | AF23: #68FEFE | AG23: #67FEFE | AH23: #66FEFE | AI23: #65FEFE | AJ23: #64FEFE | AK23: #63FEFE | AL23: #62FEFE | AM23: #61FEFE | AN23: #60FEFE | AO23: #5FFEFE | AP23: #5EFEFE | AQ23: #5DFEFE | AR23: #5CFEFE | AS23: #5BFEFE | AT23: #5AFEFE | AU23: #59FEFE | AV23: #58FEFE | AW23: #57FEFE | AX23: #56FEFE | AY23: #55FEFE
I24: =IF($E$11>=I21-2, myRGB((LEFT(I22, SEARCH(" ",I22,1)-1)),(MID(I22, SEARCH(" ",I22) + 1, SEARCH(" ",I22,SEARCH(" ",I22)+1) - SEARCH(" ",I22) - 1)),(RIGHT(I22, SEARCH(" ",I22,1)-1))),myRGB(255, 255, 255)) ->  | J24: =IF($E$11>=J21-2, myRGB((LEFT(J22, SEARCH(" ",J22,1)-1)),(MID(J22, SEARCH(" ",J22) + 1, SEARCH(" ",J22,SEARCH(" ",J22)+1) - SEARCH(" ",J22) - 1)),(RIGHT(J22, SEARCH(" ",J22,1)-1))),myRGB(255, 255, 255)) ->  | K24: =IF($E$11>=K21-2, myRGB((LEFT(K22, SEARCH(" ",K22,1)-1)),(MID(K22, SEARCH(" ",K22) + 1, SEARCH(" ",K22,SEARCH(" ",K22)+1) - SEARCH(" ",K22) - 1)),(RIGHT(K22, SEARCH(" ",K22,1)-1))),myRGB(255, 255, 255)) ->  | L24: =IF($E$11>=L21-2, myRGB((LEFT(L22, SEARCH(" ",L22,1)-1)),(MID(L22, SEARCH(" ",L22) + 1, SEARCH(" ",L22,SEARCH(" ",L22)+1) - SEARCH(" ",L22) - 1)),(RIGHT(L22, SEARCH(" ",L22,1)-1))),myRGB(255, 255, 255)) ->  | M24: =IF($E$11>=M21-2, myRGB((LEFT(M22, SEARCH(" ",M22,1)-1)),(MID(M22, SEARCH(" ",M22) + 1, SEARCH(" ",M22,SEARCH(" ",M22)+1) - SEARCH(" ",M22) - 1)),(RIGHT(M22, SEARCH(" ",M22,1)-1))),myRGB(255, 255, 255)) ->  | N24: =IF($E$11>=N21-2, myRGB((LEFT(N22, SEARCH(" ",N22,1)-1)),(MID(N22, SEARCH(" ",N22) + 1, SEARCH(" ",N22,SEARCH(" ",N22)+1) - SEARCH(" ",N22) - 1)),(RIGHT(N22, SEARCH(" ",N22,1)-1))),myRGB(255, 255, 255)) ->  | O24: =IF($E$11>=O21-2, myRGB((LEFT(O22, SEARCH(" ",O22,1)-1)),(MID(O22, SEARCH(" ",O22) + 1, SEARCH(" ",O22,SEARCH(" ",O22)+1) - SEARCH(" ",O22) - 1)),(RIGHT(O22, SEARCH(" ",O22,1)-1))),myRGB(255, 255, 255)) ->  | P24: =IF($E$11>=P21-2, myRGB((LEFT(P22, SEARCH(" ",P22,1)-1)),(MID(P22, SEARCH(" ",P22) + 1, SEARCH(" ",P22,SEARCH(" ",P22)+1) - SEARCH(" ",P22) - 1)),(RIGHT(P22, SEARCH(" ",P22,1)-1))),myRGB(255, 255, 255)) ->  | Q24: =IF($E$11>=Q21-2, myRGB((LEFT(Q22, SEARCH(" ",Q22,1)-1)),(MID(Q22, SEARCH(" ",Q22) + 1, SEARCH(" ",Q22,SEARCH(" ",Q22)+1) - SEARCH(" ",Q22) - 1)),(RIGHT(Q22, SEARCH(" ",Q22,1)-1))),myRGB(255, 255, 255)) ->  | R24: =IF($E$11>=R21-2, myRGB((LEFT(R22, SEARCH(" ",R22,1)-1)),(MID(R22, SEARCH(" ",R22) + 1, SEARCH(" ",R22,SEARCH(" ",R22)+1) - SEARCH(" ",R22) - 1)),(RIGHT(R22, SEARCH(" ",R22,1)-1))),myRGB(255, 255, 255)) ->  | S24: =IF($E$11>=S21-2, myRGB((LEFT(S22, SEARCH(" ",S22,1)-1)),(MID(S22, SEARCH(" ",S22) + 1, SEARCH(" ",S22,SEARCH(" ",S22)+1) - SEARCH(" ",S22) - 1)),(RIGHT(S22, SEARCH(" ",S22,1)-1))),myRGB(255, 255, 255)) ->  | T24: =IF($E$11>=T21-2, myRGB((LEFT(T22, SEARCH(" ",T22,1)-1)),(MID(T22, SEARCH(" ",T22) + 1, SEARCH(" ",T22,SEARCH(" ",T22)+1) - SEARCH(" ",T22) - 1)),(RIGHT(T22, SEARCH(" ",T22,1)-1))),myRGB(255, 255, 255)) ->  | U24: =IF($E$11>=U21-2, myRGB((LEFT(U22, SEARCH(" ",U22,1)-1)),(MID(U22, SEARCH(" ",U22) + 1, SEARCH(" ",U22,SEARCH(" ",U22)+1) - SEARCH(" ",U22) - 1)),(RIGHT(U22, SEARCH(" ",U22,1)-1))),myRGB(255, 255, 255)) ->  | V24: =IF($E$11>=V21-2, myRGB((LEFT(V22, SEARCH(" ",V22,1)-1)),(MID(V22, SEARCH(" ",V22) + 1, SEARCH(" ",V22,SEARCH(" ",V22)+1) - SEARCH(" ",V22) - 1)),(RIGHT(V22, SEARCH(" ",V22,1)-1))),myRGB(255, 255, 255)) ->  | W24: =IF($E$11>=W21-2, myRGB((LEFT(W22, SEARCH(" ",W22,1)-1)),(MID(W22, SEARCH(" ",W22) + 1, SEARCH(" ",W22,SEARCH(" ",W22)+1) - SEARCH(" ",W22) - 1)),(RIGHT(W22, SEARCH(" ",W22,1)-1))),myRGB(255, 255, 255)) ->  | X24: =IF($E$11>=X21-2, myRGB((LEFT(X22, SEARCH(" ",X22,1)-1)),(MID(X22, SEARCH(" ",X22) + 1, SEARCH(" ",X22,SEARCH(" ",X22)+1) - SEARCH(" ",X22) - 1)),(RIGHT(X22, SEARCH(" ",X22,1)-1))),myRGB(255, 255, 255)) ->  | Y24: =IF($E$11>=Y21-2, myRGB((LEFT(Y22, SEARCH(" ",Y22,1)-1)),(MID(Y22, SEARCH(" ",Y22) + 1, SEARCH(" ",Y22,SEARCH(" ",Y22)+1) - SEARCH(" ",Y22) - 1)),(RIGHT(Y22, SEARCH(" ",Y22,1)-1))),myRGB(255, 255, 255)) ->  | Z24: =IF($E$11>=Z21-2, myRGB((LEFT(Z22, SEARCH(" ",Z22,1)-1)),(MID(Z22, SEARCH(" ",Z22) + 1, SEARCH(" ",Z22,SEARCH(" ",Z22)+1) - SEARCH(" ",Z22) - 1)),(RIGHT(Z22, SEARCH(" ",Z22,1)-1))),myRGB(255, 255, 255)) ->  | AA24: =IF($E$11>=AA21-2, myRGB((LEFT(AA22, SEARCH(" ",AA22,1)-1)),(MID(AA22, SEARCH(" ",AA22) + 1, SEARCH(" ",AA22,SEARCH(" ",AA22)+1) - SEARCH(" ",AA22) - 1)),(RIGHT(AA22, SEARCH(" ",AA22,1)-1))),myRGB(255, 255, 255)) ->  | AB24: =IF($E$11>=AB21-2, myRGB((LEFT(AB22, SEARCH(" ",AB22,1)-1)),(MID(AB22, SEARCH(" ",AB22) + 1, SEARCH(" ",AB22,SEARCH(" ",AB22)+1) - SEARCH(" ",AB22) - 1)),(RIGHT(AB22, SEARCH(" ",AB22,1)-1))),myRGB(255, 255, 255)) ->  | AC24: =IF($E$11>=AC21-2, myRGB((LEFT(AC22, SEARCH(" ",AC22,1)-1)),(MID(AC22, SEARCH(" ",AC22) + 1, SEARCH(" ",AC22,SEARCH(" ",AC22)+1) - SEARCH(" ",AC22) - 1)),(RIGHT(AC22, SEARCH(" ",AC22,1)-1))),myRGB(255, 255, 255)) ->  | AD24: =IF($E$11>=AD21-2, myRGB((LEFT(AD22, SEARCH(" ",AD22,1)-1)),(MID(AD22, SEARCH(" ",AD22) + 1, SEARCH(" ",AD22,SEARCH(" ",AD22)+1) - SEARCH(" ",AD22) - 1)),(RIGHT(AD22, SEARCH(" ",AD22,1)-1))),myRGB(255, 255, 255)) ->  | AE24: =IF($E$11>=AE21-2, myRGB((LEFT(AE22, SEARCH(" ",AE22,1)-1)),(MID(AE22, SEARCH(" ",AE22) + 1, SEARCH(" ",AE22,SEARCH(" ",AE22)+1) - SEARCH(" ",AE22) - 1)),(RIGHT(AE22, SEARCH(" ",AE22,1)-1))),myRGB(255, 255, 255)) ->  | AF24: =IF($E$11>=AF21-2, myRGB((LEFT(AF22, SEARCH(" ",AF22,1)-1)),(MID(AF22, SEARCH(" ",AF22) + 1, SEARCH(" ",AF22,SEARCH(" ",AF22)+1) - SEARCH(" ",AF22) - 1)),(RIGHT(AF22, SEARCH(" ",AF22,1)-1))),myRGB(255, 255, 255)) ->  | AG24: =IF($E$11>=AG21-2, myRGB((LEFT(AG22, SEARCH(" ",AG22,1)-1)),(MID(AG22, SEARCH(" ",AG22) + 1, SEARCH(" ",AG22,SEARCH(" ",AG22)+1) - SEARCH(" ",AG22) - 1)),(RIGHT(AG22, SEARCH(" ",AG22,1)-1))),myRGB(255, 255, 255)) ->  | AH24: =IF($E$11>=AH21-2, myRGB((LEFT(AH22, SEARCH(" ",AH22,1)-1)),(MID(AH22, SEARCH(" ",AH22) + 1, SEARCH(" ",AH22,SEARCH(" ",AH22)+1) - SEARCH(" ",AH22) - 1)),(RIGHT(AH22, SEARCH(" ",AH22,1)-1))),myRGB(255, 255, 255)) ->  | AI24: =IF($E$11>=AI21-2, myRGB((LEFT(AI22, SEARCH(" ",AI22,1)-1)),(MID(AI22, SEARCH(" ",AI22) + 1, SEARCH(" ",AI22,SEARCH(" ",AI22)+1) - SEARCH(" ",AI22) - 1)),(RIGHT(AI22, SEARCH(" ",AI22,1)-1))),myRGB(255, 255, 255)) ->  | AJ24: =IF($E$11>=AJ21-2, myRGB((LEFT(AJ22, SEARCH(" ",AJ22,1)-1)),(MID(AJ22, SEARCH(" ",AJ22) + 1, SEARCH(" ",AJ22,SEARCH(" ",AJ22)+1) - SEARCH(" ",AJ22) - 1)),(RIGHT(AJ22, SEARCH(" ",AJ22,1)-1))),myRGB(255, 255, 255)) ->  | AK24: =IF($E$11>=AK21-2, myRGB((LEFT(AK22, SEARCH(" ",AK22,1)-1)),(MID(AK22, SEARCH(" ",AK22) + 1, SEARCH(" ",AK22,SEARCH(" ",AK22)+1) - SEARCH(" ",AK22) - 1)),(RIGHT(AK22, SEARCH(" ",AK22,1)-1))),myRGB(255, 255, 255)) ->  | AL24: =IF($E$11>=AL21-2, myRGB((LEFT(AL22, SEARCH(" ",AL22,1)-1)),(MID(AL22, SEARCH(" ",AL22) + 1, SEARCH(" ",AL22,SEARCH(" ",AL22)+1) - SEARCH(" ",AL22) - 1)),(RIGHT(AL22, SEARCH(" ",AL22,1)-1))),myRGB(255, 255, 255)) ->  | AM24: =IF($E$11>=AM21-2, myRGB((LEFT(AM22, SEARCH(" ",AM22,1)-1)),(MID(AM22, SEARCH(" ",AM22) + 1, SEARCH(" ",AM22,SEARCH(" ",AM22)+1) - SEARCH(" ",AM22) - 1)),(RIGHT(AM22, SEARCH(" ",AM22,1)-1))),myRGB(255, 255, 255)) ->  | AN24: =IF($E$11>=AN21-2, myRGB((LEFT(AN22, SEARCH(" ",AN22,1)-1)),(MID(AN22, SEARCH(" ",AN22) + 1, SEARCH(" ",AN22,SEARCH(" ",AN22)+1) - SEARCH(" ",AN22) - 1)),(RIGHT(AN22, SEARCH(" ",AN22,1)-1))),myRGB(255, 255, 255)) ->  | AO24: =IF($E$11>=AO21-2, myRGB((LEFT(AO22, SEARCH(" ",AO22,1)-1)),(MID(AO22, SEARCH(" ",AO22) + 1, SEARCH(" ",AO22,SEARCH(" ",AO22)+1) - SEARCH(" ",AO22) - 1)),(RIGHT(AO22, SEARCH(" ",AO22,1)-1))),myRGB(255, 255, 255)) ->  | AP24: =IF($E$11>=AP21-2, myRGB((LEFT(AP22, SEARCH(" ",AP22,1)-1)),(MID(AP22, SEARCH(" ",AP22) + 1, SEARCH(" ",AP22,SEARCH(" ",AP22)+1) - SEARCH(" ",AP22) - 1)),(RIGHT(AP22, SEARCH(" ",AP22,1)-1))),myRGB(255, 255, 255)) ->  | AQ24: =IF($E$11>=AQ21-2, myRGB((LEFT(AQ22, SEARCH(" ",AQ22,1)-1)),(MID(AQ22, SEARCH(" ",AQ22) + 1, SEARCH(" ",AQ22,SEARCH(" ",AQ22)+1) - SEARCH(" ",AQ22) - 1)),(RIGHT(AQ22, SEARCH(" ",AQ22,1)-1))),myRGB(255, 255, 255)) ->  | AR24: =IF($E$11>=AR21-2, myRGB((LEFT(AR22, SEARCH(" ",AR22,1)-1)),(MID(AR22, SEARCH(" ",AR22) + 1, SEARCH(" ",AR22,SEARCH(" ",AR22)+1) - SEARCH(" ",AR22) - 1)),(RIGHT(AR22, SEARCH(" ",AR22,1)-1))),myRGB(255, 255, 255)) ->  | AS24: =IF($E$11>=AS21-2, myRGB((LEFT(AS22, SEARCH(" ",AS22,1)-1)),(MID(AS22, SEARCH(" ",AS22) + 1, SEARCH(" ",AS22,SEARCH(" ",AS22)+1) - SEARCH(" ",AS22) - 1)),(RIGHT(AS22, SEARCH(" ",AS22,1)-1))),myRGB(255, 255, 255)) ->  | AT24: =IF($E$11>=AT21-2, myRGB((LEFT(AT22, SEARCH(" ",AT22,1)-1)),(MID(AT22, SEARCH(" ",AT22) + 1, SEARCH(" ",AT22,SEARCH(" ",AT22)+1) - SEARCH(" ",AT22) - 1)),(RIGHT(AT22, SEARCH(" ",AT22,1)-1))),myRGB(255, 255, 255)) ->  | AU24: =IF($E$11>=AU21-2, myRGB((LEFT(AU22, SEARCH(" ",AU22,1)-1)),(MID(AU22, SEARCH(" ",AU22) + 1, SEARCH(" ",AU22,SEARCH(" ",AU22)+1) - SEARCH(" ",AU22) - 1)),(RIGHT(AU22, SEARCH(" ",AU22,1)-1))),myRGB(255, 255, 255)) ->  | AV24: =IF($E$11>=AV21-2, myRGB((LEFT(AV22, SEARCH(" ",AV22,1)-1)),(MID(AV22, SEARCH(" ",AV22) + 1, SEARCH(" ",AV22,SEARCH(" ",AV22)+1) - SEARCH(" ",AV22) - 1)),(RIGHT(AV22, SEARCH(" ",AV22,1)-1))),myRGB(255, 255, 255)) ->  | AW24: =IF($E$11>=AW21-2, myRGB((LEFT(AW22, SEARCH(" ",AW22,1)-1)),(MID(AW22, SEARCH(" ",AW22) + 1, SEARCH(" ",AW22,SEARCH(" ",AW22)+1) - SEARCH(" ",AW22) - 1)),(RIGHT(AW22, SEARCH(" ",AW22,1)-1))),myRGB(255, 255, 255)) ->  | AX24: =IF($E$11>=AX21-2, myRGB((LEFT(AX22, SEARCH(" ",AX22,1)-1)),(MID(AX22, SEARCH(" ",AX22) + 1, SEARCH(" ",AX22,SEARCH(" ",AX22)+1) - SEARCH(" ",AX22) - 1)),(RIGHT(AX22, SEARCH(" ",AX22,1)-1))),myRGB(255, 255, 255)) ->  | AY24: =IF($E$11>=AY21-2, myRGB((LEFT(AY22, SEARCH(" ",AY22,1)-1)),(MID(AY22, SEARCH(" ",AY22) + 1, SEARCH(" ",AY22,SEARCH(" ",AY22)+1) - SEARCH(" ",AY22) - 1)),(RIGHT(AY22, SEARCH(" ",AY22,1)-1))),myRGB(255, 255, 255)) -> 
I26: 173 | J26: 174 | K26: 175 | L26: 176 | M26: 177 | N26: 178 | O26: 179 | P26: 180 | Q26: 181 | R26: 182 | S26: 183 | T26: 184 | U26: 185 | V26: 186 | W26: 187 | X26: 188 | Y26: 189 | Z26: 190 | AA26: 191 | AB26: 192 | AC26: 193 | AD26: 194 | AE26: 195 | AF26: 196 | AG26: 197 | AH26: 198 | AI26: 199 | AJ26: 200 | AK26: 201 | AL26: 202 | AM26: 203 | AN26: 204 | AO26: 205 | AP26: 206 | AQ26: 207 | AR26: 208 | AS26: 209 | AT26: 210 | AU26: 211 | AV26: 212 | AW26: 213 | AX26: 214 | AY26: 215
H27: RGB | I27: =IF($E$11>=I26-2,((IF($D$14>=0,ROUND((LEFT($D$14, SEARCH(" ",$D$14,1)-1))-((((LEFT($D$14, SEARCH(" ",$D$14,1)-1))-(LEFT($D$17, SEARCH(" ",$D$17,1)-1)))/($E$11+1))*(I26-1)),0),(" ")))&" "&(IF($E$11>=0,ROUND((MID($D$14, SEARCH(" ",$D$14) + 1, SEARCH(" ",$D$14,SEARCH(" ",$D$14)+1) - SEARCH(" ",$D$14) - 1))-(((MID($D$14, SEARCH(" ",$D$14) + 1, SEARCH(" ",$D$14,SEARCH(" ",$D$14)+1) - SEARCH(" ",$D$14) - 1))-(MID($D$17, SEARCH(" ",$D$17) + 1, SEARCH(" ",$D$17,SEARCH(" ",$D$17)+1) - SEARCH(" ",$D$17) - 1)))/($E$11+1)),0),(" ")))&" "&(IF($E$11>=0,ROUND((RIGHT($D$14, SEARCH(" ",$D$14,1)-1))-(((RIGHT($D$14, SEARCH(" ",$D$14,1)-1))-(RIGHT($D$17, SEARCH(" ",$D$17,1)-1)))/($E$11+1)),0),(" ")))),"") -> 84 254 254 | J27: =IF($E$11>=J26-2,((IF($D$14>=0,ROUND((LEFT($D$14, SEARCH(" ",$D$14,1)-1))-((((LEFT($D$14, SEARCH(" ",$D$14,1)-1))-(LEFT($D$17, SEARCH(" ",$D$17,1)-1)))/($E$11+1))*(J26-1)),0),(" ")))&" "&(IF($E$11>=0,ROUND((MID($D$14, SEARCH(" ",$D$14) + 1, SEARCH(" ",$D$14,SEARCH(" ",$D$14)+1) - SEARCH(" ",$D$14) - 1))-(((MID($D$14, SEARCH(" ",$D$14) + 1, SEARCH(" ",$D$14,SEARCH(" ",$D$14)+1) - SEARCH(" ",$D$14) - 1))-(MID($D$17, SEARCH(" ",$D$17) + 1, SEARCH(" ",$D$17,SEARCH(" ",$D$17)+1) - SEARCH(" ",$D$17) - 1)))/($E$11+1)),0),(" ")))&" "&(IF($E$11>=0,ROUND((RIGHT($D$14, SEARCH(" ",$D$14,1)-1))-(((RIGHT($D$14, SEARCH(" ",$D$14,1)-1))-(RIGHT($D$17, SEARCH(" ",$D$17,1)-1)))/($E$11+1)),0),(" ")))),"") -> 83 254 254 | K27: =IF($E$11>=K26-2,((IF($D$14>=0,ROUND((LEFT($D$14, SEARCH(" ",$D$14,1)-1))-((((LEFT($D$14, SEARCH(" ",$D$14,1)-1))-(LEFT($D$17, SEARCH(" ",$D$17,1)-1)))/($E$11+1))*(K26-1)),0),(" ")))&" "&(IF($E$11>=0,ROUND((MID($D$14, SEARCH(" ",$D$14) + 1, SEARCH(" ",$D$14,SEARCH(" ",$D$14)+1) - SEARCH(" ",$D$14) - 1))-(((MID($D$14, SEARCH(" ",$D$14) + 1, SEARCH(" ",$D$14,SEARCH(" ",$D$14)+1) - SEARCH(" ",$D$14) - 1))-(MID($D$17, SEARCH(" ",$D$17) + 1, SEARCH(" ",$D$17,SEARCH(" ",$D$17)+1) - SEARCH(" ",$D$17) - 1)))/($E$11+1)),0),(" ")))&" "&(IF($E$11>=0,ROUND((RIGHT($D$14, SEARCH(" ",$D$14,1)-1))-(((RIGHT($D$14, SEARCH(" ",$D$14,1)-1))-(RIGHT($D$17, SEARCH(" ",$D$17,1)-1)))/($E$11+1)),0),(" ")))),"") -> 82 254 254 | L27: 81 254 254 | M27: 80 254 254 | N27: 79 254 254 | O27: 78 254 254 | P27: 77 254 254 | Q27: 76 254 254 | R27: 75 254 254 | S27: 74 254 254 | T27: 73 254 254 | U27: 72 254 254 | V27: 71 254 254 | W27: 70 254 254 | X27: 69 254 254 | Y27: 68 254 254 | Z27: 67 254 254 | AA27: 66 254 254 | AB27: 65 254 254 | AC27: 64 254 254 | AD27: 63 254 254 | AE27: 62 254 254 | AF27: 61 254 254 | AG27: 60 254 254 | AH27: 59 254 254 | AI27: 58 254 254 | AJ27: 57 254 254 | AK27: 56 254 254 | AL27: 55 254 254 | AM27: 54 254 254 | AN27: 53 254 254 | AO27: 52 254 254 | AP27: 51 254 254 | AQ27: 50 254 254 | AR27: 49 254 254 | AS27: 48 254 254 | AT27: 47 254 254 | AU27: 46 254 254 | AV27: 45 254 254 | AW27: 44 254 254 | AX27: 43 254 254 | AY27: 42 254 254
H28: HEX | I28: =IF($E$11>=I26-2,"#"&DEC2HEX((LEFT(I27,SEARCH(" ",I27,1)-1)),2)&DEC2HEX((MID(I27,SEARCH(" ",I27)+1,SEARCH(" ",I27,SEARCH(" ",I27)+1)-SEARCH(" ",I27)-1)),2)&DEC2HEX((RIGHT(I27,LEN(I27)-SEARCH(" ",I27,SEARCH(" ",I27)+1))),2),("")) -> #54FEFE | J28: =IF($E$11>=J26-2,"#"&DEC2HEX((LEFT(J27,SEARCH(" ",J27,1)-1)),2)&DEC2HEX((MID(J27,SEARCH(" ",J27)+1,SEARCH(" ",J27,SEARCH(" ",J27)+1)-SEARCH(" ",J27)-1)),2)&DEC2HEX((RIGHT(J27,LEN(J27)-SEARCH(" ",J27,SEARCH(" ",J27)+1))),2),("")) -> #53FEFE | K28: =IF($E$11>=K26-2,"#"&DEC2HEX((LEFT(K27,SEARCH(" ",K27,1)-1)),2)&DEC2HEX((MID(K27,SEARCH(" ",K27)+1,SEARCH(" ",K27,SEARCH(" ",K27)+1)-SEARCH(" ",K27)-1)),2)&DEC2HEX((RIGHT(K27,LEN(K27)-SEARCH(" ",K27,SEARCH(" ",K27)+1))),2),("")) -> #52FEFE | L28: #51FEFE | M28: #50FEFE | N28: #4FFEFE | O28: #4EFEFE | P28: #4DFEFE | Q28: #4CFEFE | R28: #4BFEFE | S28: #4AFEFE | T28: #49FEFE | U28: #48FEFE | V28: #47FEFE | W28: #46FEFE | X28: #45FEFE | Y28: #44FEFE | Z28: #43FEFE | AA28: #42FEFE | AB28: #41FEFE | AC28: #40FEFE | AD28: #3FFEFE | AE28: #3EFEFE | AF28: #3DFEFE | AG28: #3CFEFE | AH28: #3BFEFE | AI28: #3AFEFE | AJ28: #39FEFE | AK28: #38FEFE | AL28: #37FEFE | AM28: #36FEFE | AN28: #35FEFE | AO28: #34FEFE | AP28: #33FEFE | AQ28: #32FEFE | AR28: #31FEFE | AS28: #30FEFE | AT28: #2FFEFE | AU28: #2EFEFE | AV28: #2DFEFE | AW28: #2CFEFE | AX28: #2BFEFE | AY28: #2AFEFE
I29: =IF($E$11>=I26-2, myRGB((LEFT(I27, SEARCH(" ",I27,1)-1)),(MID(I27, SEARCH(" ",I27) + 1, SEARCH(" ",I27,SEARCH(" ",I27)+1) - SEARCH(" ",I27) - 1)),(RIGHT(I27, SEARCH(" ",I27,1)-1))),myRGB(255, 255, 255)) ->  | J29: =IF($E$11>=J26-2, myRGB((LEFT(J27, SEARCH(" ",J27,1)-1)),(MID(J27, SEARCH(" ",J27) + 1, SEARCH(" ",J27,SEARCH(" ",J27)+1) - SEARCH(" ",J27) - 1)),(RIGHT(J27, SEARCH(" ",J27,1)-1))),myRGB(255, 255, 255)) ->  | K29: =IF($E$11>=K26-2, myRGB((LEFT(K27, SEARCH(" ",K27,1)-1)),(MID(K27, SEARCH(" ",K27) + 1, SEARCH(" ",K27,SEARCH(" ",K27)+1) - SEARCH(" ",K27) - 1)),(RIGHT(K27, SEARCH(" ",K27,1)-1))),myRGB(255, 255, 255)) ->  | L29: =IF($E$11>=L26-2, myRGB((LEFT(L27, SEARCH(" ",L27,1)-1)),(MID(L27, SEARCH(" ",L27) + 1, SEARCH(" ",L27,SEARCH(" ",L27)+1) - SEARCH(" ",L27) - 1)),(RIGHT(L27, SEARCH(" ",L27,1)-1))),myRGB(255, 255, 255)) ->  | M29: =IF($E$11>=M26-2, myRGB((LEFT(M27, SEARCH(" ",M27,1)-1)),(MID(M27, SEARCH(" ",M27) + 1, SEARCH(" ",M27,SEARCH(" ",M27)+1) - SEARCH(" ",M27) - 1)),(RIGHT(M27, SEARCH(" ",M27,1)-1))),myRGB(255, 255, 255)) ->  | N29: =IF($E$11>=N26-2, myRGB((LEFT(N27, SEARCH(" ",N27,1)-1)),(MID(N27, SEARCH(" ",N27) + 1, SEARCH(" ",N27,SEARCH(" ",N27)+1) - SEARCH(" ",N27) - 1)),(RIGHT(N27, SEARCH(" ",N27,1)-1))),myRGB(255, 255, 255)) ->  | O29: =IF($E$11>=O26-2, myRGB((LEFT(O27, SEARCH(" ",O27,1)-1)),(MID(O27, SEARCH(" ",O27) + 1, SEARCH(" ",O27,SEARCH(" ",O27)+1) - SEARCH(" ",O27) - 1)),(RIGHT(O27, SEARCH(" ",O27,1)-1))),myRGB(255, 255, 255)) ->  | P29: =IF($E$11>=P26-2, myRGB((LEFT(P27, SEARCH(" ",P27,1)-1)),(MID(P27, SEARCH(" ",P27) + 1, SEARCH(" ",P27,SEARCH(" ",P27)+1) - SEARCH(" ",P27) - 1)),(RIGHT(P27, SEARCH(" ",P27,1)-1))),myRGB(255, 255, 255)) ->  | Q29: =IF($E$11>=Q26-2, myRGB((LEFT(Q27, SEARCH(" ",Q27,1)-1)),(MID(Q27, SEARCH(" ",Q27) + 1, SEARCH(" ",Q27,SEARCH(" ",Q27)+1) - SEARCH(" ",Q27) - 1)),(RIGHT(Q27, SEARCH(" ",Q27,1)-1))),myRGB(255, 255, 255)) ->  | R29: =IF($E$11>=R26-2, myRGB((LEFT(R27, SEARCH(" ",R27,1)-1)),(MID(R27, SEARCH(" ",R27) + 1, SEARCH(" ",R27,SEARCH(" ",R27)+1) - SEARCH(" ",R27) - 1)),(RIGHT(R27, SEARCH(" ",R27,1)-1))),myRGB(255, 255, 255)) ->  | S29: =IF($E$11>=S26-2, myRGB((LEFT(S27, SEARCH(" ",S27,1)-1)),(MID(S27, SEARCH(" ",S27) + 1, SEARCH(" ",S27,SEARCH(" ",S27)+1) - SEARCH(" ",S27) - 1)),(RIGHT(S27, SEARCH(" ",S27,1)-1))),myRGB(255, 255, 255)) ->  | T29: =IF($E$11>=T26-2, myRGB((LEFT(T27, SEARCH(" ",T27,1)-1)),(MID(T27, SEARCH(" ",T27) + 1, SEARCH(" ",T27,SEARCH(" ",T27)+1) - SEARCH(" ",T27) - 1)),(RIGHT(T27, SEARCH(" ",T27,1)-1))),myRGB(255, 255, 255)) ->  | U29: =IF($E$11>=U26-2, myRGB((LEFT(U27, SEARCH(" ",U27,1)-1)),(MID(U27, SEARCH(" ",U27) + 1, SEARCH(" ",U27,SEARCH(" ",U27)+1) - SEARCH(" ",U27) - 1)),(RIGHT(U27, SEARCH(" ",U27,1)-1))),myRGB(255, 255, 255)) ->  | V29: =IF($E$11>=V26-2, myRGB((LEFT(V27, SEARCH(" ",V27,1)-1)),(MID(V27, SEARCH(" ",V27) + 1, SEARCH(" ",V27,SEARCH(" ",V27)+1) - SEARCH(" ",V27) - 1)),(RIGHT(V27, SEARCH(" ",V27,1)-1))),myRGB(255, 255, 255)) ->  | W29: =IF($E$11>=W26-2, myRGB((LEFT(W27, SEARCH(" ",W27,1)-1)),(MID(W27, SEARCH(" ",W27) + 1, SEARCH(" ",W27,SEARCH(" ",W27)+1) - SEARCH(" ",W27) - 1)),(RIGHT(W27, SEARCH(" ",W27,1)-1))),myRGB(255, 255, 255)) ->  | X29: =IF($E$11>=X26-2, myRGB((LEFT(X27, SEARCH(" ",X27,1)-1)),(MID(X27, SEARCH(" ",X27) + 1, SEARCH(" ",X27,SEARCH(" ",X27)+1) - SEARCH(" ",X27) - 1)),(RIGHT(X27, SEARCH(" ",X27,1)-1))),myRGB(255, 255, 255)) ->  | Y29: =IF($E$11>=Y26-2, myRGB((LEFT(Y27, SEARCH(" ",Y27,1)-1)),(MID(Y27, SEARCH(" ",Y27) + 1, SEARCH(" ",Y27,SEARCH(" ",Y27)+1) - SEARCH(" ",Y27) - 1)),(RIGHT(Y27, SEARCH(" ",Y27,1)-1))),myRGB(255, 255, 255)) ->  | Z29: =IF($E$11>=Z26-2, myRGB((LEFT(Z27, SEARCH(" ",Z27,1)-1)),(MID(Z27, SEARCH(" ",Z27) + 1, SEARCH(" ",Z27,SEARCH(" ",Z27)+1) - SEARCH(" ",Z27) - 1)),(RIGHT(Z27, SEARCH(" ",Z27,1)-1))),myRGB(255, 255, 255)) ->  | AA29: =IF($E$11>=AA26-2, myRGB((LEFT(AA27, SEARCH(" ",AA27,1)-1)),(MID(AA27, SEARCH(" ",AA27) + 1, SEARCH(" ",AA27,SEARCH(" ",AA27)+1) - SEARCH(" ",AA27) - 1)),(RIGHT(AA27, SEARCH(" ",AA27,1)-1))),myRGB(255, 255, 255)) ->  | AB29: =IF($E$11>=AB26-2, myRGB((LEFT(AB27, SEARCH(" ",AB27,1)-1)),(MID(AB27, SEARCH(" ",AB27) + 1, SEARCH(" ",AB27,SEARCH(" ",AB27)+1) - SEARCH(" ",AB27) - 1)),(RIGHT(AB27, SEARCH(" ",AB27,1)-1))),myRGB(255, 255, 255)) ->  | AC29: =IF($E$11>=AC26-2, myRGB((LEFT(AC27, SEARCH(" ",AC27,1)-1)),(MID(AC27, SEARCH(" ",AC27) + 1, SEARCH(" ",AC27,SEARCH(" ",AC27)+1) - SEARCH(" ",AC27) - 1)),(RIGHT(AC27, SEARCH(" ",AC27,1)-1))),myRGB(255, 255, 255)) ->  | AD29: =IF($E$11>=AD26-2, myRGB((LEFT(AD27, SEARCH(" ",AD27,1)-1)),(MID(AD27, SEARCH(" ",AD27) + 1, SEARCH(" ",AD27,SEARCH(" ",AD27)+1) - SEARCH(" ",AD27) - 1)),(RIGHT(AD27, SEARCH(" ",AD27,1)-1))),myRGB(255, 255, 255)) ->  | AE29: =IF($E$11>=AE26-2, myRGB((LEFT(AE27, SEARCH(" ",AE27,1)-1)),(MID(AE27, SEARCH(" ",AE27) + 1, SEARCH(" ",AE27,SEARCH(" ",AE27)+1) - SEARCH(" ",AE27) - 1)),(RIGHT(AE27, SEARCH(" ",AE27,1)-1))),myRGB(255, 255, 255)) ->  | AF29: =IF($E$11>=AF26-2, myRGB((LEFT(AF27, SEARCH(" ",AF27,1)-1)),(MID(AF27, SEARCH(" ",AF27) + 1, SEARCH(" ",AF27,SEARCH(" ",AF27)+1) - SEARCH(" ",AF27) - 1)),(RIGHT(AF27, SEARCH(" ",AF27,1)-1))),myRGB(255, 255, 255)) ->  | AG29: =IF($E$11>=AG26-2, myRGB((LEFT(AG27, SEARCH(" ",AG27,1)-1)),(MID(AG27, SEARCH(" ",AG27) + 1, SEARCH(" ",AG27,SEARCH(" ",AG27)+1) - SEARCH(" ",AG27) - 1)),(RIGHT(AG27, SEARCH(" ",AG27,1)-1))),myRGB(255, 255, 255)) ->  | AH29: =IF($E$11>=AH26-2, myRGB((LEFT(AH27, SEARCH(" ",AH27,1)-1)),(MID(AH27, SEARCH(" ",AH27) + 1, SEARCH(" ",AH27,SEARCH(" ",AH27)+1) - SEARCH(" ",AH27) - 1)),(RIGHT(AH27, SEARCH(" ",AH27,1)-1))),myRGB(255, 255, 255)) ->  | AI29: =IF($E$11>=AI26-2, myRGB((LEFT(AI27, SEARCH(" ",AI27,1)-1)),(MID(AI27, SEARCH(" ",AI27) + 1, SEARCH(" ",AI27,SEARCH(" ",AI27)+1) - SEARCH(" ",AI27) - 1)),(RIGHT(AI27, SEARCH(" ",AI27,1)-1))),myRGB(255, 255, 255)) ->  | AJ29: =IF($E$11>=AJ26-2, myRGB((LEFT(AJ27, SEARCH(" ",AJ27,1)-1)),(MID(AJ27, SEARCH(" ",AJ27) + 1, SEARCH(" ",AJ27,SEARCH(" ",AJ27)+1) - SEARCH(" ",AJ27) - 1)),(RIGHT(AJ27, SEARCH(" ",AJ27,1)-1))),myRGB(255, 255, 255)) ->  | AK29: =IF($E$11>=AK26-2, myRGB((LEFT(AK27, SEARCH(" ",AK27,1)-1)),(MID(AK27, SEARCH(" ",AK27) + 1, SEARCH(" ",AK27,SEARCH(" ",AK27)+1) - SEARCH(" ",AK27) - 1)),(RIGHT(AK27, SEARCH(" ",AK27,1)-1))),myRGB(255, 255, 255)) ->  | AL29: =IF($E$11>=AL26-2, myRGB((LEFT(AL27, SEARCH(" ",AL27,1)-1)),(MID(AL27, SEARCH(" ",AL27) + 1, SEARCH(" ",AL27,SEARCH(" ",AL27)+1) - SEARCH(" ",AL27) - 1)),(RIGHT(AL27, SEARCH(" ",AL27,1)-1))),myRGB(255, 255, 255)) ->  | AM29: =IF($E$11>=AM26-2, myRGB((LEFT(AM27, SEARCH(" ",AM27,1)-1)),(MID(AM27, SEARCH(" ",AM27) + 1, SEARCH(" ",AM27,SEARCH(" ",AM27)+1) - SEARCH(" ",AM27) - 1)),(RIGHT(AM27, SEARCH(" ",AM27,1)-1))),myRGB(255, 255, 255)) ->  | AN29: =IF($E$11>=AN26-2, myRGB((LEFT(AN27, SEARCH(" ",AN27,1)-1)),(MID(AN27, SEARCH(" ",AN27) + 1, SEARCH(" ",AN27,SEARCH(" ",AN27)+1) - SEARCH(" ",AN27) - 1)),(RIGHT(AN27, SEARCH(" ",AN27,1)-1))),myRGB(255, 255, 255)) ->  | AO29: =IF($E$11>=AO26-2, myRGB((LEFT(AO27, SEARCH(" ",AO27,1)-1)),(MID(AO27, SEARCH(" ",AO27) + 1, SEARCH(" ",AO27,SEARCH(" ",AO27)+1) - SEARCH(" ",AO27) - 1)),(RIGHT(AO27, SEARCH(" ",AO27,1)-1))),myRGB(255, 255, 255)) ->  | AP29: =IF($E$11>=AP26-2, myRGB((LEFT(AP27, SEARCH(" ",AP27,1)-1)),(MID(AP27, SEARCH(" ",AP27) + 1, SEARCH(" ",AP27,SEARCH(" ",AP27)+1) - SEARCH(" ",AP27) - 1)),(RIGHT(AP27, SEARCH(" ",AP27,1)-1))),myRGB(255, 255, 255)) ->  | AQ29: =IF($E$11>=AQ26-2, myRGB((LEFT(AQ27, SEARCH(" ",AQ27,1)-1)),(MID(AQ27, SEARCH(" ",AQ27) + 1, SEARCH(" ",AQ27,SEARCH(" ",AQ27)+1) - SEARCH(" ",AQ27) - 1)),(RIGHT(AQ27, SEARCH(" ",AQ27,1)-1))),myRGB(255, 255, 255)) ->  | AR29: =IF($E$11>=AR26-2, myRGB((LEFT(AR27, SEARCH(" ",AR27,1)-1)),(MID(AR27, SEARCH(" ",AR27) + 1, SEARCH(" ",AR27,SEARCH(" ",AR27)+1) - SEARCH(" ",AR27) - 1)),(RIGHT(AR27, SEARCH(" ",AR27,1)-1))),myRGB(255, 255, 255)) ->  | AS29: =IF($E$11>=AS26-2, myRGB((LEFT(AS27, SEARCH(" ",AS27,1)-1)),(MID(AS27, SEARCH(" ",AS27) + 1, SEARCH(" ",AS27,SEARCH(" ",AS27)+1) - SEARCH(" ",AS27) - 1)),(RIGHT(AS27, SEARCH(" ",AS27,1)-1))),myRGB(255, 255, 255)) ->  | AT29: =IF($E$11>=AT26-2, myRGB((LEFT(AT27, SEARCH(" ",AT27,1)-1)),(MID(AT27, SEARCH(" ",AT27) + 1, SEARCH(" ",AT27,SEARCH(" ",AT27)+1) - SEARCH(" ",AT27) - 1)),(RIGHT(AT27, SEARCH(" ",AT27,1)-1))),myRGB(255, 255, 255)) ->  | AU29: =IF($E$11>=AU26-2, myRGB((LEFT(AU27, SEARCH(" ",AU27,1)-1)),(MID(AU27, SEARCH(" ",AU27) + 1, SEARCH(" ",AU27,SEARCH(" ",AU27)+1) - SEARCH(" ",AU27) - 1)),(RIGHT(AU27, SEARCH(" ",AU27,1)-1))),myRGB(255, 255, 255)) ->  | AV29: =IF($E$11>=AV26-2, myRGB((LEFT(AV27, SEARCH(" ",AV27,1)-1)),(MID(AV27, SEARCH(" ",AV27) + 1, SEARCH(" ",AV27,SEARCH(" ",AV27)+1) - SEARCH(" ",AV27) - 1)),(RIGHT(AV27, SEARCH(" ",AV27,1)-1))),myRGB(255, 255, 255)) ->  | AW29: =IF($E$11>=AW26-2, myRGB((LEFT(AW27, SEARCH(" ",AW27,1)-1)),(MID(AW27, SEARCH(" ",AW27) + 1, SEARCH(" ",AW27,SEARCH(" ",AW27)+1) - SEARCH(" ",AW27) - 1)),(RIGHT(AW27, SEARCH(" ",AW27,1)-1))),myRGB(255, 255, 255)) ->  | AX29: =IF($E$11>=AX26-2, myRGB((LEFT(AX27, SEARCH(" ",AX27,1)-1)),(MID(AX27, SEARCH(" ",AX27) + 1, SEARCH(" ",AX27,SEARCH(" ",AX27)+1) - SEARCH(" ",AX27) - 1)),(RIGHT(AX27, SEARCH(" ",AX27,1)-1))),myRGB(255, 255, 255)) ->  | AY29: =IF($E$11>=AY26-2, myRGB((LEFT(AY27, SEARCH(" ",AY27,1)-1)),(MID(AY27, SEARCH(" ",AY27) + 1, SEARCH(" ",AY27,SEARCH(" ",AY27)+1) - SEARCH(" ",AY27) - 1)),(RIGHT(AY27, SEARCH(" ",AY27,1)-1))),myRGB(255, 255, 255)) -> 
I31: 216 | J31: 217 | K31: 218 | L31: 219 | M31: 220 | N31: 221 | O31: 222 | P31: 223 | Q31: 224 | R31: 225 | S31: 226 | T31: 227 | U31: 228 | V31: 229 | W31: 230 | X31: 231 | Y31: 232 | Z31: 233 | AA31: 234 | AB31: 235 | AC31: 236 | AD31: 237 | AE31: 238 | AF31: 239 | AG31: 240 | AH31: 241 | AI31: 242 | AJ31: 243 | AK31: 244 | AL31: 245 | AM31: 246 | AN31: 247 | AO31: 248 | AP31: 249 | AQ31: 250 | AR31: 251 | AS31: 252 | AT31: 253 | AU31: 254 | AV31: 255
H32: RGB | I32: =IF($E$11>=I31-2,((IF($D$14>=0,ROUND((LEFT($D$14, SEARCH(" ",$D$14,1)-1))-((((LEFT($D$14, SEARCH(" ",$D$14,1)-1))-(LEFT($D$17, SEARCH(" ",$D$17,1)-1)))/($E$11+1))*(I31-1)),0),(" ")))&" "&(IF($E$11>=0,ROUND((MID($D$14, SEARCH(" ",$D$14) + 1, SEARCH(" ",$D$14,SEARCH(" ",$D$14)+1) - SEARCH(" ",$D$14) - 1))-(((MID($D$14, SEARCH(" ",$D$14) + 1, SEARCH(" ",$D$14,SEARCH(" ",$D$14)+1) - SEARCH(" ",$D$14) - 1))-(MID($D$17, SEARCH(" ",$D$17) + 1, SEARCH(" ",$D$17,SEARCH(" ",$D$17)+1) - SEARCH(" ",$D$17) - 1)))/($E$11+1)),0),(" ")))&" "&(IF($E$11>=0,ROUND((RIGHT($D$14, SEARCH(" ",$D$14,1)-1))-(((RIGHT($D$14, SEARCH(" ",$D$14,1)-1))-(RIGHT($D$17, SEARCH(" ",$D$17,1)-1)))/($E$11+1)),0),(" ")))),"") -> 41 254 254 | J32: =IF($E$11>=J11-2,((IF($D$14>=0,ROUND((LEFT($D$14, SEARCH(" ",$D$14,1)-1))-((((LEFT($D$14, SEARCH(" ",$D$14,1)-1))-(LEFT($D$17, SEARCH(" ",$D$17,1)-1)))/($E$11+1))*2),0),(" ")))&" "&(IF($E$11>=0,ROUND((MID($D$14, SEARCH(" ",$D$14) + 1, SEARCH(" ",$D$14,SEARCH(" ",$D$14)+1) - SEARCH(" ",$D$14) - 1))-(((MID($D$14, SEARCH(" ",$D$14) + 1, SEARCH(" ",$D$14,SEARCH(" ",$D$14)+1) - SEARCH(" ",$D$14) - 1))-(MID($D$17, SEARCH(" ",$D$17) + 1, SEARCH(" ",$D$17,SEARCH(" ",$D$17)+1) - SEARCH(" ",$D$17) - 1)))/($E$11+1)),0),(" ")))&" "&(IF($E$11>=0,ROUND((RIGHT($D$14, SEARCH(" ",$D$14,1)-1))-(((RIGHT($D$14, SEARCH(" ",$D$14,1)-1))-(RIGHT($D$17, SEARCH(" ",$D$17,1)-1)))/($E$11+1)),0),(" ")))),"") -> 253 254 254 | K32: 253 254 254 | L32: 253 254 254 | M32: 253 254 254 | N32: 253 254 254 | O32: 253 254 254 | P32: 253 254 254 | Q32: 253 254 254 | R32: 253 254 254 | S32: 253 254 254 | T32: 253 254 254 | U32: 253 254 254 | V32: 253 254 254 | W32: 253 254 254 | X32: 253 254 254 | Y32: 253 254 254 | Z32: 253 254 254 | AA32: 253 254 254 | AB32: 253 254 254 | AC32: 253 254 254 | AD32: 253 254 254 | AE32: 253 254 254 | AF32: 253 254 254 | AG32: 253 254 254 | AH32: 253 254 254 | AI32: 253 254 254 | AJ32: 253 254 254 | AK32: 253 254 254 | AL32: 253 254 254 | AM32: 253 254 254 | AN32: 253 254 254 | AO32: 253 254 254 | AP32: 253 254 254 | AQ32: 253 254 254 | AR32: 253 254 254 | AS32: 253 254 254 | AT32: 253 254 254 | AU32: 253 254 254 | AV32: 253 254 254
H33: HEX | I33: =IF($E$11>=I31-2,"#"&DEC2HEX((LEFT(I32,SEARCH(" ",I32,1)-1)),2)&DEC2HEX((MID(I32,SEARCH(" ",I32)+1,SEARCH(" ",I32,SEARCH(" ",I32)+1)-SEARCH(" ",I32)-1)),2)&DEC2HEX((RIGHT(I32,LEN(I32)-SEARCH(" ",I32,SEARCH(" ",I32)+1))),2),("")) -> #29FEFE | J33: =IF($E$11>=J31-2,"#"&DEC2HEX((LEFT(J32,SEARCH(" ",J32,1)-1)),2)&DEC2HEX((MID(J32,SEARCH(" ",J32)+1,SEARCH(" ",J32,SEARCH(" ",J32)+1)-SEARCH(" ",J32)-1)),2)&DEC2HEX((RIGHT(J32,LEN(J32)-SEARCH(" ",J32,SEARCH(" ",J32)+1))),2),("")) -> #FDFEFE | K33: =IF($E$11>=K31-2,"#"&DEC2HEX((LEFT(K32,SEARCH(" ",K32,1)-1)),2)&DEC2HEX((MID(K32,SEARCH(" ",K32)+1,SEARCH(" ",K32,SEARCH(" ",K32)+1)-SEARCH(" ",K32)-1)),2)&DEC2HEX((RIGHT(K32,LEN(K32)-SEARCH(" ",K32,SEARCH(" ",K32)+1))),2),("")) -> #FDFEFE | L33: #FDFEFE | M33: #FDFEFE | N33: #FDFEFE | O33: #FDFEFE | P33: #FDFEFE | Q33: #FDFEFE | R33: #FDFEFE | S33: #FDFEFE | T33: #FDFEFE | U33: #FDFEFE | V33: #FDFEFE | W33: #FDFEFE | X33: #FDFEFE | Y33: #FDFEFE | Z33: #FDFEFE | AA33: #FDFEFE | AB33: #FDFEFE | AC33: #FDFEFE | AD33: #FDFEFE | AE33: #FDFEFE | AF33: #FDFEFE | AG33: #FDFEFE | AH33: #FDFEFE | AI33: #FDFEFE | AJ33: #FDFEFE | AK33: #FDFEFE | AL33: #FDFEFE | AM33: #FDFEFE | AN33: #FDFEFE | AO33: #FDFEFE | AP33: #FDFEFE | AQ33: #FDFEFE | AR33: #FDFEFE | AS33: #FDFEFE | AT33: #FDFEFE | AU33: #FDFEFE | AV33: #FDFEFE
I34: =IF($E$11>=I31-2, myRGB((LEFT(I32, SEARCH(" ",I32,1)-1)),(MID(I32, SEARCH(" ",I32) + 1, SEARCH(" ",I32,SEARCH(" ",I32)+1) - SEARCH(" ",I32) - 1)),(RIGHT(I32, SEARCH(" ",I32,1)-1))),myRGB(255, 255, 255)) ->  | J34: =IF($E$11>=J31-2, myRGB((LEFT(J32, SEARCH(" ",J32,1)-1)),(MID(J32, SEARCH(" ",J32) + 1, SEARCH(" ",J32,SEARCH(" ",J32)+1) - SEARCH(" ",J32) - 1)),(RIGHT(J32, SEARCH(" ",J32,1)-1))),myRGB(255, 255, 255)) ->  | K34: =IF($E$11>=K31-2, myRGB((LEFT(K32, SEARCH(" ",K32,1)-1)),(MID(K32, SEARCH(" ",K32) + 1, SEARCH(" ",K32,SEARCH(" ",K32)+1) - SEARCH(" ",K32) - 1)),(RIGHT(K32, SEARCH(" ",K32,1)-1))),myRGB(255, 255, 255)) ->  | L34: =IF($E$11>=L31-2, myRGB((LEFT(L32, SEARCH(" ",L32,1)-1)),(MID(L32, SEARCH(" ",L32) + 1, SEARCH(" ",L32,SEARCH(" ",L32)+1) - SEARCH(" ",L32) - 1)),(RIGHT(L32, SEARCH(" ",L32,1)-1))),myRGB(255, 255, 255)) ->  | M34: =IF($E$11>=M31-2, myRGB((LEFT(M32, SEARCH(" ",M32,1)-1)),(MID(M32, SEARCH(" ",M32) + 1, SEARCH(" ",M32,SEARCH(" ",M32)+1) - SEARCH(" ",M32) - 1)),(RIGHT(M32, SEARCH(" ",M32,1)-1))),myRGB(255, 255, 255)) ->  | N34: =IF($E$11>=N31-2, myRGB((LEFT(N32, SEARCH(" ",N32,1)-1)),(MID(N32, SEARCH(" ",N32) + 1, SEARCH(" ",N32,SEARCH(" ",N32)+1) - SEARCH(" ",N32) - 1)),(RIGHT(N32, SEARCH(" ",N32,1)-1))),myRGB(255, 255, 255)) ->  | O34: =IF($E$11>=O31-2, myRGB((LEFT(O32, SEARCH(" ",O32,1)-1)),(MID(O32, SEARCH(" ",O32) + 1, SEARCH(" ",O32,SEARCH(" ",O32)+1) - SEARCH(" ",O32) - 1)),(RIGHT(O32, SEARCH(" ",O32,1)-1))),myRGB(255, 255, 255)) ->  | P34: =IF($E$11>=P31-2, myRGB((LEFT(P32, SEARCH(" ",P32,1)-1)),(MID(P32, SEARCH(" ",P32) + 1, SEARCH(" ",P32,SEARCH(" ",P32)+1) - SEARCH(" ",P32) - 1)),(RIGHT(P32, SEARCH(" ",P32,1)-1))),myRGB(255, 255, 255)) ->  | Q34: =IF($E$11>=Q31-2, myRGB((LEFT(Q32, SEARCH(" ",Q32,1)-1)),(MID(Q32, SEARCH(" ",Q32) + 1, SEARCH(" ",Q32,SEARCH(" ",Q32)+1) - SEARCH(" ",Q32) - 1)),(RIGHT(Q32, SEARCH(" ",Q32,1)-1))),myRGB(255, 255, 255)) ->  | R34: =IF($E$11>=R31-2, myRGB((LEFT(R32, SEARCH(" ",R32,1)-1)),(MID(R32, SEARCH(" ",R32) + 1, SEARCH(" ",R32,SEARCH(" ",R32)+1) - SEARCH(" ",R32) - 1)),(RIGHT(R32, SEARCH(" ",R32,1)-1))),myRGB(255, 255, 255)) ->  | S34: =IF($E$11>=S31-2, myRGB((LEFT(S32, SEARCH(" ",S32,1)-1)),(MID(S32, SEARCH(" ",S32) + 1, SEARCH(" ",S32,SEARCH(" ",S32)+1) - SEARCH(" ",S32) - 1)),(RIGHT(S32, SEARCH(" ",S32,1)-1))),myRGB(255, 255, 255)) ->  | T34: =IF($E$11>=T31-2, myRGB((LEFT(T32, SEARCH(" ",T32,1)-1)),(MID(T32, SEARCH(" ",T32) + 1, SEARCH(" ",T32,SEARCH(" ",T32)+1) - SEARCH(" ",T32) - 1)),(RIGHT(T32, SEARCH(" ",T32,1)-1))),myRGB(255, 255, 255)) ->  | U34: =IF($E$11>=U31-2, myRGB((LEFT(U32, SEARCH(" ",U32,1)-1)),(MID(U32, SEARCH(" ",U32) + 1, SEARCH(" ",U32,SEARCH(" ",U32)+1) - SEARCH(" ",U32) - 1)),(RIGHT(U32, SEARCH(" ",U32,1)-1))),myRGB(255, 255, 255)) ->  | V34: =IF($E$11>=V31-2, myRGB((LEFT(V32, SEARCH(" ",V32,1)-1)),(MID(V32, SEARCH(" ",V32) + 1, SEARCH(" ",V32,SEARCH(" ",V32)+1) - SEARCH(" ",V32) - 1)),(RIGHT(V32, SEARCH(" ",V32,1)-1))),myRGB(255, 255, 255)) ->  | W34: =IF($E$11>=W31-2, myRGB((LEFT(W32, SEARCH(" ",W32,1)-1)),(MID(W32, SEARCH(" ",W32) + 1, SEARCH(" ",W32,SEARCH(" ",W32)+1) - SEARCH(" ",W32) - 1)),(RIGHT(W32, SEARCH(" ",W32,1)-1))),myRGB(255, 255, 255)) ->  | X34: =IF($E$11>=X31-2, myRGB((LEFT(X32, SEARCH(" ",X32,1)-1)),(MID(X32, SEARCH(" ",X32) + 1, SEARCH(" ",X32,SEARCH(" ",X32)+1) - SEARCH(" ",X32) - 1)),(RIGHT(X32, SEARCH(" ",X32,1)-1))),myRGB(255, 255, 255)) ->  | Y34: =IF($E$11>=Y31-2, myRGB((LEFT(Y32, SEARCH(" ",Y32,1)-1)),(MID(Y32, SEARCH(" ",Y32) + 1, SEARCH(" ",Y32,SEARCH(" ",Y32)+1) - SEARCH(" ",Y32) - 1)),(RIGHT(Y32, SEARCH(" ",Y32,1)-1))),myRGB(255, 255, 255)) ->  | Z34: =IF($E$11>=Z31-2, myRGB((LEFT(Z32, SEARCH(" ",Z32,1)-1)),(MID(Z32, SEARCH(" ",Z32) + 1, SEARCH(" ",Z32,SEARCH(" ",Z32)+1) - SEARCH(" ",Z32) - 1)),(RIGHT(Z32, SEARCH(" ",Z32,1)-1))),myRGB(255, 255, 255)) ->  | AA34: =IF($E$11>=AA31-2, myRGB((LEFT(AA32, SEARCH(" ",AA32,1)-1)),(MID(AA32, SEARCH(" ",AA32) + 1, SEARCH(" ",AA32,SEARCH(" ",AA32)+1) - SEARCH(" ",AA32) - 1)),(RIGHT(AA32, SEARCH(" ",AA32,1)-1))),myRGB(255, 255, 255)) ->  | AB34: =IF($E$11>=AB31-2, myRGB((LEFT(AB32, SEARCH(" ",AB32,1)-1)),(MID(AB32, SEARCH(" ",AB32) + 1, SEARCH(" ",AB32,SEARCH(" ",AB32)+1) - SEARCH(" ",AB32) - 1)),(RIGHT(AB32, SEARCH(" ",AB32,1)-1))),myRGB(255, 255, 255)) ->  | AC34: =IF($E$11>=AC31-2, myRGB((LEFT(AC32, SEARCH(" ",AC32,1)-1)),(MID(AC32, SEARCH(" ",AC32) + 1, SEARCH(" ",AC32,SEARCH(" ",AC32)+1) - SEARCH(" ",AC32) - 1)),(RIGHT(AC32, SEARCH(" ",AC32,1)-1))),myRGB(255, 255, 255)) ->  | AD34: =IF($E$11>=AD31-2, myRGB((LEFT(AD32, SEARCH(" ",AD32,1)-1)),(MID(AD32, SEARCH(" ",AD32) + 1, SEARCH(" ",AD32,SEARCH(" ",AD32)+1) - SEARCH(" ",AD32) - 1)),(RIGHT(AD32, SEARCH(" ",AD32,1)-1))),myRGB(255, 255, 255)) ->  | AE34: =IF($E$11>=AE31-2, myRGB((LEFT(AE32, SEARCH(" ",AE32,1)-1)),(MID(AE32, SEARCH(" ",AE32) + 1, SEARCH(" ",AE32,SEARCH(" ",AE32)+1) - SEARCH(" ",AE32) - 1)),(RIGHT(AE32, SEARCH(" ",AE32,1)-1))),myRGB(255, 255, 255)) ->  | AF34: =IF($E$11>=AF31-2, myRGB((LEFT(AF32, SEARCH(" ",AF32,1)-1)),(MID(AF32, SEARCH(" ",AF32) + 1, SEARCH(" ",AF32,SEARCH(" ",AF32)+1) - SEARCH(" ",AF32) - 1)),(RIGHT(AF32, SEARCH(" ",AF32,1)-1))),myRGB(255, 255, 255)) ->  | AG34: =IF($E$11>=AG31-2, myRGB((LEFT(AG32, SEARCH(" ",AG32,1)-1)),(MID(AG32, SEARCH(" ",AG32) + 1, SEARCH(" ",AG32,SEARCH(" ",AG32)+1) - SEARCH(" ",AG32) - 1)),(RIGHT(AG32, SEARCH(" ",AG32,1)-1))),myRGB(255, 255, 255)) ->  | AH34: =IF($E$11>=AH31-2, myRGB((LEFT(AH32, SEARCH(" ",AH32,1)-1)),(MID(AH32, SEARCH(" ",AH32) + 1, SEARCH(" ",AH32,SEARCH(" ",AH32)+1) - SEARCH(" ",AH32) - 1)),(RIGHT(AH32, SEARCH(" ",AH32,1)-1))),myRGB(255, 255, 255)) ->  | AI34: =IF($E$11>=AI31-2, myRGB((LEFT(AI32, SEARCH(" ",AI32,1)-1)),(MID(AI32, SEARCH(" ",AI32) + 1, SEARCH(" ",AI32,SEARCH(" ",AI32)+1) - SEARCH(" ",AI32) - 1)),(RIGHT(AI32, SEARCH(" ",AI32,1)-1))),myRGB(255, 255, 255)) ->  | AJ34: =IF($E$11>=AJ31-2, myRGB((LEFT(AJ32, SEARCH(" ",AJ32,1)-1)),(MID(AJ32, SEARCH(" ",AJ32) + 1, SEARCH(" ",AJ32,SEARCH(" ",AJ32)+1) - SEARCH(" ",AJ32) - 1)),(RIGHT(AJ32, SEARCH(" ",AJ32,1)-1))),myRGB(255, 255, 255)) ->  | AK34: =IF($E$11>=AK31-2, myRGB((LEFT(AK32, SEARCH(" ",AK32,1)-1)),(MID(AK32, SEARCH(" ",AK32) + 1, SEARCH(" ",AK32,SEARCH(" ",AK32)+1) - SEARCH(" ",AK32) - 1)),(RIGHT(AK32, SEARCH(" ",AK32,1)-1))),myRGB(255, 255, 255)) ->  | AL34: =IF($E$11>=AL31-2, myRGB((LEFT(AL32, SEARCH(" ",AL32,1)-1)),(MID(AL32, SEARCH(" ",AL32) + 1, SEARCH(" ",AL32,SEARCH(" ",AL32)+1) - SEARCH(" ",AL32) - 1)),(RIGHT(AL32, SEARCH(" ",AL32,1)-1))),myRGB(255, 255, 255)) ->  | AM34: =IF($E$11>=AM31-2, myRGB((LEFT(AM32, SEARCH(" ",AM32,1)-1)),(MID(AM32, SEARCH(" ",AM32) + 1, SEARCH(" ",AM32,SEARCH(" ",AM32)+1) - SEARCH(" ",AM32) - 1)),(RIGHT(AM32, SEARCH(" ",AM32,1)-1))),myRGB(255, 255, 255)) ->  | AN34: =IF($E$11>=AN31-2, myRGB((LEFT(AN32, SEARCH(" ",AN32,1)-1)),(MID(AN32, SEARCH(" ",AN32) + 1, SEARCH(" ",AN32,SEARCH(" ",AN32)+1) - SEARCH(" ",AN32) - 1)),(RIGHT(AN32, SEARCH(" ",AN32,1)-1))),myRGB(255, 255, 255)) ->  | AO34: =IF($E$11>=AO31-2, myRGB((LEFT(AO32, SEARCH(" ",AO32,1)-1)),(MID(AO32, SEARCH(" ",AO32) + 1, SEARCH(" ",AO32,SEARCH(" ",AO32)+1) - SEARCH(" ",AO32) - 1)),(RIGHT(AO32, SEARCH(" ",AO32,1)-1))),myRGB(255, 255, 255)) ->  | AP34: =IF($E$11>=AP31-2, myRGB((LEFT(AP32, SEARCH(" ",AP32,1)-1)),(MID(AP32, SEARCH(" ",AP32) + 1, SEARCH(" ",AP32,SEARCH(" ",AP32)+1) - SEARCH(" ",AP32) - 1)),(RIGHT(AP32, SEARCH(" ",AP32,1)-1))),myRGB(255, 255, 255)) ->  | AQ34: =IF($E$11>=AQ31-2, myRGB((LEFT(AQ32, SEARCH(" ",AQ32,1)-1)),(MID(AQ32, SEARCH(" ",AQ32) + 1, SEARCH(" ",AQ32,SEARCH(" ",AQ32)+1) - SEARCH(" ",AQ32) - 1)),(RIGHT(AQ32, SEARCH(" ",AQ32,1)-1))),myRGB(255, 255, 255)) ->  | AR34: =IF($E$11>=AR31-2, myRGB((LEFT(AR32, SEARCH(" ",AR32,1)-1)),(MID(AR32, SEARCH(" ",AR32) + 1, SEARCH(" ",AR32,SEARCH(" ",AR32)+1) - SEARCH(" ",AR32) - 1)),(RIGHT(AR32, SEARCH(" ",AR32,1)-1))),myRGB(255, 255, 255)) ->  | AS34: =IF($E$11>=AS31-2, myRGB((LEFT(AS32, SEARCH(" ",AS32,1)-1)),(MID(AS32, SEARCH(" ",AS32) + 1, SEARCH(" ",AS32,SEARCH(" ",AS32)+1) - SEARCH(" ",AS32) - 1)),(RIGHT(AS32, SEARCH(" ",AS32,1)-1))),myRGB(255, 255, 255)) ->  | AT34: =IF($E$11>=AT31-2, myRGB((LEFT(AT32, SEARCH(" ",AT32,1)-1)),(MID(AT32, SEARCH(" ",AT32) + 1, SEARCH(" ",AT32,SEARCH(" ",AT32)+1) - SEARCH(" ",AT32) - 1)),(RIGHT(AT32, SEARCH(" ",AT32,1)-1))),myRGB(255, 255, 255)) ->  | AU34: =IF($E$11>=AU31-2, myRGB((LEFT(AU32, SEARCH(" ",AU32,1)-1)),(MID(AU32, SEARCH(" ",AU32) + 1, SEARCH(" ",AU32,SEARCH(" ",AU32)+1) - SEARCH(" ",AU32) - 1)),(RIGHT(AU32, SEARCH(" ",AU32,1)-1))),myRGB(255, 255, 255)) ->  | AV34: =IF($E$11>=AV31-2, myRGB((LEFT(AV32, SEARCH(" ",AV32,1)-1)),(MID(AV32, SEARCH(" ",AV32) + 1, SEARCH(" ",AV32,SEARCH(" ",AV32)+1) - SEARCH(" ",AV32) - 1)),(RIGHT(AV32, SEARCH(" ",AV32,1)-1))),myRGB(255, 255, 255)) -> 
B37: Gradient Tool MK1
I41: 1 | J41: 2 | K41: 3 | L41: 4 | M41: 5 | N41: 6 | O41: 7 | P41: 8 | Q41: 9 | R41: 10 | S41: 11 | T41: 12 | U41: 13 | V41: 14 | W41: 15 | X41: 16 | Y41: 17 | Z41: 18 | AA41: 19 | AB41: 20 | AC41: 21 | AD41: 22 | AE41: 23 | AF41: 24 | AG41: 25 | AH41: 26 | AI41: 27 | AJ41: 28 | AK41: 29 | AL41: 30 | AM41: 31 | AN41: 32 | AO41: 33 | AP41: 34 | AQ41: 35 | AR41: 36 | AS41: 37 | AT41: 38 | AU41: 39 | AV41: 40 | AW41: 41 | AX41: 42 | AY41: 43
B42: Lightest | C42: First Colour: | E42: 255152128 | H42: R | I42: =D47 -> 255 | J42: =IF(E44>=0,ROUND(D47-(D52/(E44+1)),0),(" ")) -> 245 | K42: =IF(E44>=1,ROUND(D47-((D52/(E44+1))*2),0),(" ")) -> 235 | L42: =IF(E44>=2,ROUND(D47-((D52/(E44+1))*3),0),(" ")) -> 225 | M42: =IF(E44>=3,ROUND(D47-((D52/(E44+1))*4),0),(" ")) -> 215 | N42: =IF(E44>=4,ROUND(D47-((D52/(E44+1))*5),0),(" ")) -> 205 | O42: =IF(E44>=5,ROUND(D47-((D52/(E44+1))*6),0),(" ")) -> 195 | P42: =IF(E44>=6,ROUND(D47-((D52/(E44+1))*7),0),(" ")) -> 185 | Q42: =IF(E44>=7,ROUND(D47-((D52/(E44+1))*8),0),(" ")) -> 175 | R42: =IF(E44>=8,ROUND(D47-((D52/(E44+1))*9),0),(" ")) -> 165 | S42: =IF(E44>=9,ROUND(D47-((D52/(E44+1))*10),0),(" ")) -> 154 | T42: =IF(E44>=10,ROUND(D47-((D52/(E44+1))*11),0),(" ")) -> 144 | U42: =IF(E44>=11,ROUND(D47-((D52/(E44+1))*12),0),(" ")) -> 134 | V42: =IF(E44>=12,ROUND(D47-((D52/(E44+1))*13),0),(" ")) -> 124 | W42: =IF(E44>=13,ROUND(D47-((D52/(E44+1))*14),0),(" ")) -> 114 | X42: =IF(E44>=14,ROUND(D47-((D52/(E44+1))*15),0),(" ")) -> 104 | Y42: =IF(E44>=15,ROUND(D47-((D52/(E44+1))*16),0),(" ")) -> 94 | Z42: =IF(E44>=16,ROUND(D47-((D52/(E44+1))*17),0),(" ")) -> 84 | AA42: =IF(E44>=17,ROUND(D47-((D52/(E44+1))*18),0),(" ")) -> 74 | AB42: =IF(E44>=18,ROUND(D47-((D52/(E44+1))*19),0),(" ")) -> 64 | AC42: =IF(E44>=19,ROUND(D47-((D52/(E44+1))*20),0),(" ")) ->  | AD42: =IF(E44>=20,ROUND(D47-((D52/(E44+1))*21),0),(" ")) ->  | AE42: =IF(E44>=21,ROUND(D47-((D52/(E44+1))*22),0),(" ")) ->  | AF42: =IF(E44>=22,ROUND(D47-((D52/(E44+1))*23),0),(" ")) ->  | AG42: =IF(E44>=23,ROUND(D47-((D52/(E44+1))*24),0),(" ")) ->  | AH42: =IF(E44>=24,ROUND(D47-((D52/(E44+1))*25),0),(" ")) ->  | AI42: =IF(E44>=25,ROUND(D47-((D52/(E44+1))*26),0),(" ")) ->  | AJ42: =IF(E44>=26,ROUND(D47-((D52/(E44+1))*27),0),(" ")) ->  | AK42: =IF(E44>=27,ROUND(D47-((D52/(E44+1))*28),0),(" ")) ->  | AL42: =IF(E44>=28,ROUND(D47-((D52/(E44+1))*29),0),(" ")) ->  | AM42: =IF(E44>=29,ROUND(D47-((D52/(E44+1))*30),0),(" ")) ->  | AN42: =IF(E44>=30,ROUND(D47-((D52/(E44+1))*31),0),(" ")) ->  | AO42: =IF(E44>=31,ROUND(D47-((D52/(E44+1))*32),0),(" ")) ->  | AP42: =IF(E44>=32,ROUND(D47-((D52/(E44+1))*33),0),(" ")) ->  | AQ42: =IF(E44>=33,ROUND(D47-((D52/(E44+1))*34),0),(" ")) ->  | AR42: =IF(E44>=34,ROUND(D47-((D52/(E44+1))*35),0),(" ")) ->  | AS42: =IF(E44>=35,ROUND(D47-((D52/(E44+1))*36),0),(" ")) ->  | AT42: =IF(E44>=36,ROUND(D47-((D52/(E44+1))*37),0),(" ")) ->  | AU42: =IF(E44>=37,ROUND(D47-((D52/(E44+1))*38),0),(" ")) ->  | AV42: =IF(E44>=38,ROUND(D47-((D52/(E44+1))*39),0),(" ")) ->  | AW42: =IF(E44>=39,ROUND(D47-((D52/(E44+1))*40),0),(" ")) ->  | AX42: =IF(E44>=40,ROUND(D47-((D52/(E44+1))*41),0),(" ")) ->  | AY42: =IF(E44>=41,ROUND(D47-((D52/(E44+1))*42),0),(" ")) -> 
B43: Darkest | C43: Second Colour: | E43: 64128255 | H43: G | I43: =D48 -> 152 | J43: =IF(E44>=0,ROUND(D48-(D53/(E44+1)),0),(" ")) -> 151 | K43: =IF(E44>=1,ROUND(D48-((D53/(E44+1))*2),0),(" ")) -> 149 | L43: =IF(E44>=2,ROUND(D48-((D53/(E44+1))*3),0),(" ")) -> 148 | M43: =IF(E44>=3,ROUND(D48-((D53/(E44+1))*4),0),(" ")) -> 147 | N43: =IF(E44>=4,ROUND(D48-((D53/(E44+1))*5),0),(" ")) -> 146 | O43: =IF(E44>=5,ROUND(D48-((D53/(E44+1))*6),0),(" ")) -> 144 | P43: =IF(E44>=6,ROUND(D48-((D53/(E44+1))*7),0),(" ")) -> 143 | Q43: =IF(E44>=7,ROUND(D48-((D53/(E44+1))*8),0),(" ")) -> 142 | R43: =IF(E44>=8,ROUND(D48-((D53/(E44+1))*9),0),(" ")) -> 141 | S43: =IF(E44>=9,ROUND(D48-((D53/(E44+1))*10),0),(" ")) -> 139 | T43: =IF(E44>=10,ROUND(D48-((D53/(E44+1))*11),0),(" ")) -> 138 | U43: =IF(E44>=11,ROUND(D48-((D53/(E44+1))*12),0),(" ")) -> 137 | V43: =IF(E44>=12,ROUND(D48-((D53/(E44+1))*13),0),(" ")) -> 136 | W43: =IF(E44>=13,ROUND(D48-((D53/(E44+1))*14),0),(" ")) -> 134 | X43: =IF(E44>=14,ROUND(D48-((D53/(E44+1))*15),0),(" ")) -> 133 | Y43: =IF(E44>=15,ROUND(D48-((D53/(E44+1))*16),0),(" ")) -> 132 | Z43: =IF(E44>=16,ROUND(D48-((D53/(E44+1))*17),0),(" ")) -> 131 | AA43: =IF(E44>=17,ROUND(D48-((D53/(E44+1))*18),0),(" ")) -> 129 | AB43: =IF(E44>=18,ROUND(D48-((D53/(E44+1))*19),0),(" ")) -> 128 | AC43: =IF(E44>=19,ROUND(D48-((D53/(E44+1))*20),0),(" ")) ->  | AD43: =IF(E44>=20,ROUND(D48-((D53/(E44+1))*21),0),(" ")) ->  | AE43: =IF(E44>=21,ROUND(D48-((D53/(E44+1))*22),0),(" ")) ->  | AF43: =IF(E44>=22,ROUND(D48-((D53/(E44+1))*23),0),(" ")) ->  | AG43: =IF(E44>=23,ROUND(D48-((D53/(E44+1))*24),0),(" ")) ->  | AH43: =IF(E44>=24,ROUND(D48-((D53/(E44+1))*25),0),(" ")) ->  | AI43: =IF(E44>=25,ROUND(D48-((D53/(E44+1))*26),0),(" ")) ->  | AJ43: =IF(E44>=26,ROUND(D48-((D53/(E44+1))*27),0),(" ")) ->  | AK43: =IF(E44>=27,ROUND(D48-((D53/(E44+1))*28),0),(" ")) ->  | AL43: =IF(E44>=28,ROUND(D48-((D53/(E44+1))*29),0),(" ")) ->  | AM43: =IF(E44>=29,ROUND(D48-((D53/(E44+1))*30),0),(" ")) ->  | AN43: =IF(E44>=30,ROUND(D48-((D53/(E44+1))*31),0),(" ")) ->  | AO43: =IF(E44>=31,ROUND(D48-((D53/(E44+1))*32),0),(" ")) ->  | AP43: =IF(E44>=32,ROUND(D48-((D53/(E44+1))*33),0),(" ")) ->  | AQ43: =IF(E44>=33,ROUND(D48-((D53/(E44+1))*34),0),(" ")) ->  | AR43: =IF(E44>=34,ROUND(D48-((D53/(E44+1))*35),0),(" ")) ->  | AS43: =IF(E44>=35,ROUND(D48-((D53/(E44+1))*36),0),(" ")) ->  | AT43: =IF(E44>=36,ROUND(D48-((D53/(E44+1))*37),0),(" ")) ->  | AU43: =IF(E44>=37,ROUND(D48-((D53/(E44+1))*38),0),(" ")) ->  | AV43: =IF(E44>=38,ROUND(D48-((D53/(E44+1))*39),0),(" ")) ->  | AW43: =IF(E44>=39,ROUND(D48-((D53/(E44+1))*40),0),(" ")) ->  | AX43: =IF(E44>=40,ROUND(D48-((D53/(E44+1))*41),0),(" ")) ->  | AY43: =IF(E44>=41,ROUND(D48-((D53/(E44+1))*42),0),(" ")) -> 
B44: Amount of Numbers In Between: | E44: 18 | H44: B | I44: =D49 -> 128 | J44: =IF(E44>=0,ROUND(D49-(D54/(E44+1)),0),(" ")) -> 135 | K44: =IF(E44>=1,ROUND(D49-((D54/(E44+1))*2),0),(" ")) -> 141 | L44: =IF(E44>=2,ROUND(D49-((D54/(E44+1))*3),0),(" ")) -> 148 | M44: =IF(E44>=3,ROUND(D49-((D54/(E44+1))*4),0),(" ")) -> 155 | N44: =IF(E44>=4,ROUND(D49-((D54/(E44+1))*5),0),(" ")) -> 161 | O44: =IF(E44>=5,ROUND(D49-((D54/(E44+1))*6),0),(" ")) -> 168 | P44: =IF(E44>=6,ROUND(D49-((D54/(E44+1))*7),0),(" ")) -> 175 | Q44: =IF(E44>=7,ROUND(D49-((D54/(E44+1))*8),0),(" ")) -> 181 | R44: =IF(E44>=8,ROUND(D49-((D54/(E44+1))*9),0),(" ")) -> 188 | S44: =IF(E44>=9,ROUND(D49-((D54/(E44+1))*10),0),(" ")) -> 195 | T44: =IF(E44>=10,ROUND(D49-((D54/(E44+1))*11),0),(" ")) -> 202 | U44: =IF(E44>=11,ROUND(D49-((D54/(E44+1))*12),0),(" ")) -> 208 | V44: =IF(E44>=12,ROUND(D49-((D54/(E44+1))*13),0),(" ")) -> 215 | W44: =IF(E44>=13,ROUND(D49-((D54/(E44+1))*14),0),(" ")) -> 222 | X44: =IF(E44>=14,ROUND(D49-((D54/(E44+1))*15),0),(" ")) -> 228 | Y44: =IF(E44>=15,ROUND(D49-((D54/(E44+1))*16),0),(" ")) -> 235 | Z44: =IF(E44>=16,ROUND(D49-((D54/(E44+1))*17),0),(" ")) -> 242 | AA44: =IF(E44>=17,ROUND(D49-((D54/(E44+1))*18),0),(" ")) -> 248 | AB44: =IF(E44>=18,ROUND(D49-((D54/(E44+1))*19),0),(" ")) -> 255 | AC44: =IF(E44>=19,ROUND(D49-((D54/(E44+1))*20),0),(" ")) ->  | AD44: =IF(E44>=20,ROUND(D49-((D54/(E44+1))*21),0),(" ")) ->  | AE44: =IF(E44>=21,ROUND(D49-((D54/(E44+1))*22),0),(" ")) ->  | AF44: =IF(E44>=22,ROUND(D49-((D54/(E44+1))*23),0),(" ")) ->  | AG44: =IF(E44>=23,ROUND(D49-((D54/(E44+1))*24),0),(" ")) ->  | AH44: =IF(E44>=24,ROUND(D49-((D54/(E44+1))*25),0),(" ")) ->  | AI44: =IF(E44>=25,ROUND(D49-((D54/(E44+1))*26),0),(" ")) ->  | AJ44: =IF(E44>=26,ROUND(D49-((D54/(E44+1))*27),0),(" ")) ->  | AK44: =IF(E44>=27,ROUND(D49-((D54/(E44+1))*28),0),(" ")) ->  | AL44: =IF(E44>=28,ROUND(D49-((D54/(E44+1))*29),0),(" ")) ->  | AM44: =IF(E44>=29,ROUND(D49-((D54/(E44+1))*30),0),(" ")) ->  | AN44: =IF(E44>=30,ROUND(D49-((D54/(E44+1))*31),0),(" ")) ->  | AO44: =IF(E44>=31,ROUND(D49-((D54/(E44+1))*32),0),(" ")) ->  | AP44: =IF(E44>=32,ROUND(D49-((D54/(E44+1))*33),0),(" ")) ->  | AQ44: =IF(E44>=33,ROUND(D49-((D54/(E44+1))*34),0),(" ")) ->  | AR44: =IF(E44>=34,ROUND(D49-((D54/(E44+1))*35),0),(" ")) ->  | AS44: =IF(E44>=35,ROUND(D49-((D54/(E44+1))*36),0),(" ")) ->  | AT44: =IF(E44>=36,ROUND(D49-((D54/(E44+1))*37),0),(" ")) ->  | AU44: =IF(E44>=37,ROUND(D49-((D54/(E44+1))*38),0),(" ")) ->  | AV44: =IF(E44>=38,ROUND(D49-((D54/(E44+1))*39),0),(" ")) ->  | AW44: =IF(E44>=39,ROUND(D49-((D54/(E44+1))*40),0),(" ")) ->  | AX44: =IF(E44>=40,ROUND(D49-((D54/(E44+1))*41),0),(" ")) ->  | AY44: =IF(E44>=41,ROUND(D49-((D54/(E44+1))*42),0),(" ")) -> 
D46: First Colour | E46: Second Colour | I46: 52 | J46: 53 | K46: 54 | L46: 55 | M46: 56 | N46: 57 | O46: 58 | P46: 59 | Q46: 60 | R46: 61 | S46: 62 | T46: 63 | U46: 64 | V46: 65 | W46: 66 | X46: 67 | Y46: 68 | Z46: 69 | AA46: 70 | AB46: 71 | AC46: 72 | AD46: 73 | AE46: 74 | AF46: 75 | AG46: 76 | AH46: 77 | AI46: 78 | AJ46: 79 | AK46: 80 | AL46: 81 | AM46: 82 | AN46: 83 | AO46: 84 | AP46: 85 | AQ46: 86 | AR46: 87 | AS46: 88 | AT46: 89 | AU46: 90 | AV46: 91 | AW46: 92 | AX46: 93 | AY46: 94
C47: R | D47: =ROUND((E42*(10^-6)),0) -> 255 | E47: =ROUND((E43*(10^-6)),0) -> 64 | H47: R | I47: =IF(E44>=50,ROUND(D47-((D52/(E44+1))*51),0),(" ")) ->  | J47: =IF(E44>=51,ROUND(D47-((D52/(E44+1))*52),0),(" ")) ->  | K47: =IF(E44>=52,ROUND(D47-((D52/(E44+1))*53),0),(" ")) ->  | L47: =IF(E44>=53,ROUND(D47-((D52/(E44+1))*54),0),(" ")) ->  | M47: =IF(E44>=54,ROUND(D47-((D52/(E44+1))*55),0),(" ")) ->  | N47: =IF(E44>=55,ROUND(D47-((D52/(E44+1))*56),0),(" ")) -> 
C48: G | D48: =ROUND(((E42-(D47*(10^6)))*10^-3),0) -> 152 | E48: =ROUND(((E43-(E47*(10^6)))*10^-3),0) -> 128 | H48: G | I48: =IF(E44>=50,ROUND(D48-((D53/(E44+1))*51),0),(" ")) ->  | J48: =IF(E44>=51,ROUND(D48-((D53/(E44+1))*52),0),(" ")) ->  | K48: =IF(E44>=52,ROUND(D48-((D53/(E44+1))*53),0),(" ")) ->  | L48: =IF(E44>=53,ROUND(D48-((D53/(E44+1))*54),0),(" ")) ->  | M48: =IF(E44>=54,ROUND(D48-((D53/(E44+1))*55),0),(" ")) ->  | N48: =IF(E44>=55,ROUND(D48-((D53/(E44+1))*56),0),(" ")) -> 
C49: B | D49: =E42-(D47*(10^6))-(D48*(10^3)) -> 128 | E49: =E43-(E47*(10^6))-(E48*(10^3)) -> 255 | H49: B | I49: =IF(E44>=50,ROUND(D49-((D54/(E44+1))*51),0),(" ")) ->  | J49: =IF(E44>=51,ROUND(D49-((D54/(E44+1))*52),0),(" ")) ->  | K49: =IF(E44>=52,ROUND(D49-((D54/(E44+1))*53),0),(" ")) ->  | L49: =IF(E44>=53,ROUND(D49-((D54/(E44+1))*54),0),(" ")) ->  | M49: =IF(E44>=54,ROUND(D49-((D54/(E44+1))*55),0),(" ")) ->  | N49: =IF(E44>=55,ROUND(D49-((D54/(E44+1))*56),0),(" ")) -> 
D51: Subtracted Colours | I51: 103 | J51: 104 | K51: 105 | L51: 106 | M51: 107 | N51: 108 | O51: 109 | P51: 110 | Q51: 111 | R51: 112 | S51: 113 | T51: 114 | U51: 115 | V51: 116 | W51: 117 | X51: 118 | Y51: 119 | Z51: 120 | AA51: 121 | AB51: 122 | AC51: 123 | AD51: 124 | AE51: 125 | AF51: 126 | AG51: 127 | AH51: 128 | AI51: 129 | AJ51: 130 | AK51: 131 | AL51: 132 | AM51: 133 | AN51: 134 | AO51: 135 | AP51: 136 | AQ51: 137 | AR51: 138 | AS51: 139 | AT51: 140 | AU51: 141 | AV51: 142 | AW51: 143 | AX51: 144 | AY51: 145
C52: R | D52: =D47-E47 -> 191 | H52: R
C53: G | D53: =D48-E48 -> 24 | H53: G
C54: B | D54: -127 | H54: B
I56: 154 | J56: 155 | K56: 156 | L56: 157 | M56: 158 | N56: 159 | O56: 160 | P56: 161 | Q56: 162 | R56: 163 | S56: 164 | T56: 165 | U56: 166 | V56: 167 | W56: 168 | X56: 169 | Y56: 170 | Z56: 171 | AA56: 172 | AB56: 173 | AC56: 174 | AD56: 175 | AE56: 176 | AF56: 177 | AG56: 178 | AH56: 179 | AI56: 180 | AJ56: 181 | AK56: 182 | AL56: 183 | AM56: 184 | AN56: 185 | AO56: 186 | AP56: 187 | AQ56: 188 | AR56: 189 | AS56: 190 | AT56: 191 | AU56: 192 | AV56: 193 | AW56: 194 | AX56: 195 | AY56: 196
H57: R
H58: G
H59: B
I61: 205 | J61: 206 | K61: 207 | L61: 208 | M61: 209 | N61: 210 | O61: 211 | P61: 212 | Q61: 213 | R61: 214 | S61: 215 | T61: 216 | U61: 217 | V61: 218 | W61: 219 | X61: 220 | Y61: 221 | Z61: 222 | AA61: 223 | AB61: 224 | AC61: 225 | AD61: 226 | AE61: 227 | AF61: 228 | AG61: 229 | AH61: 230 | AI61: 231 | AJ61: 232 | AK61: 233 | AL61: 234 | AM61: 235 | AN61: 236 | AO61: 237 | AP61: 238 | AQ61: 239 | AR61: 240 | AS61: 241 | AT61: 242 | AU61: 243 | AV61: 244 | AW61: 245 | AX61: 246 | AY61: 247
H62: R
H63: G
H64: B
B67: Notes
B71: #ff12c7 | D71: 255 244 233 | F71: =AVERAGE(5,3) -> 4 | I71: Fix HEX and RGB bug
B72: =SUBSTITUTE(B71,"#","") -> ff12c7 | D72: =SUBSTITUTE(D71," ","") -> 255244233 | F72: =((5-3)/2)+3 -> 4
D74: =LEFT(D71, SEARCH(" ",D71,1)-1) -> 255
D75: =MID(D71, SEARCH(" ",D71) + 1, SEARCH(" ",D71,SEARCH(" ",D71)+1) - SEARCH(" ",D71) - 1) -> 244
D76: =RIGHT(D71, SEARCH(" ",D71,1)-1) -> 233
